Department family,Entity,Date,Expense Type,Expense area,Supplier,Transaction number,AP Amount (�)
Department of Health,NHS Sheffield CCG,30/11/2017,C&M-PMS Contract Value,PRC DELEGATED CO-COMMISSIONING,ABBEY LANE SURGERY,19592940,"22,343.58 "
Department of Health,NHS Sheffield CCG,30/11/2017,C&M-PMS DES Minor Surgery,PRC DELEGATED CO-COMMISSIONING,ABBEY LANE SURGERY,19592940,"1,465.00 "
Department of Health,NHS Sheffield CCG,30/11/2017,C&M-PMS Funding Differential Review,PRC DELEGATED CO-COMMISSIONING,ABBEY LANE SURGERY,19592940,"1,105.08 "
Department of Health,NHS Sheffield CCG,30/11/2017,C&M-PMS Out of Hours Opt Outs,PRC DELEGATED CO-COMMISSIONING,ABBEY LANE SURGERY,19592940,9.38 
Department of Health,NHS Sheffield CCG,30/11/2017,C&M-PMS PCO Other,PRC DELEGATED CO-COMMISSIONING,ABBEY LANE SURGERY,19592940,384.50 
Department of Health,NHS Sheffield CCG,30/11/2017,C&M-PMS Prem Notional Rent,PRC DELEGATED CO-COMMISSIONING,ABBEY LANE SURGERY,19592940,"2,122.92 "
Department of Health,NHS Sheffield CCG,30/11/2017,C&M-PMS Prem Rates,PRC DELEGATED CO-COMMISSIONING,ABBEY LANE SURGERY,19592940,700.00 
Department of Health,NHS Sheffield CCG,30/11/2017,C&M-PMS QOF Aspiration,PRC DELEGATED CO-COMMISSIONING,ABBEY LANE SURGERY,19592940,"3,210.12 "
Department of Health,NHS Sheffield CCG,30/11/2017,Cont Care-Physical Disab (65+),CHC ADULT FULLY FUNDED,ABBEYCARE NURSING,19770926,"48,177.00 "
Department of Health,NHS Sheffield CCG,30/11/2017,Contract & Agency-Agency Int Mgr,CONTRACT MANAGEMENT,AVENTIS SOLUTIONS LTD,19850315,"51,612.00 "
Department of Health,NHS Sheffield CCG,30/11/2017,Contract & Agency-Agency Int Mgr,CONTRACT MANAGEMENT,AVENTIS SOLUTIONS LTD,19850651,"(51,612.00)"
Department of Health,NHS Sheffield CCG,30/11/2017,C&M-PMS Contract Value,PRC DELEGATED CO-COMMISSIONING,AVENUE MEDICAL CENTRE SHEFFIELD,19592938,"53,143.93 "
Department of Health,NHS Sheffield CCG,30/11/2017,C&M-PMS DES Learn Dsblty Hlth Chk,PRC DELEGATED CO-COMMISSIONING,AVENUE MEDICAL CENTRE SHEFFIELD,19592938,560.00 
Department of Health,NHS Sheffield CCG,30/11/2017,C&M-PMS DES Minor Surgery,PRC DELEGATED CO-COMMISSIONING,AVENUE MEDICAL CENTRE SHEFFIELD,19592938,"1,690.00 "
Department of Health,NHS Sheffield CCG,30/11/2017,C&M-PMS GP Statutory Levy,PRC DELEGATED CO-COMMISSIONING,AVENUE MEDICAL CENTRE SHEFFIELD,19592938,2.88 
Department of Health,NHS Sheffield CCG,30/11/2017,C&M-PMS Out of Hours Opt Outs,PRC DELEGATED CO-COMMISSIONING,AVENUE MEDICAL CENTRE SHEFFIELD,19592938,59.73 
Department of Health,NHS Sheffield CCG,30/11/2017,C&M-PMS PCO Other,PRC DELEGATED CO-COMMISSIONING,AVENUE MEDICAL CENTRE SHEFFIELD,19592938,452.60 
Department of Health,NHS Sheffield CCG,30/11/2017,C&M-PMS Prem Notional Rent,PRC DELEGATED CO-COMMISSIONING,AVENUE MEDICAL CENTRE SHEFFIELD,19592938,"5,546.67 "
Department of Health,NHS Sheffield CCG,30/11/2017,C&M-PMS Prem Rates,PRC DELEGATED CO-COMMISSIONING,AVENUE MEDICAL CENTRE SHEFFIELD,19592938,875.00 
Department of Health,NHS Sheffield CCG,30/11/2017,C&M-PMS Prem Water Rates,PRC DELEGATED CO-COMMISSIONING,AVENUE MEDICAL CENTRE SHEFFIELD,19592938,181.88 
Department of Health,NHS Sheffield CCG,30/11/2017,C&M-PMS QOF Aspiration,PRC DELEGATED CO-COMMISSIONING,AVENUE MEDICAL CENTRE SHEFFIELD,19592938,"6,441.78 "
Department of Health,NHS Sheffield CCG,30/11/2017,C&M-PMS Voluntary Levy,PRC DELEGATED CO-COMMISSIONING,AVENUE MEDICAL CENTRE SHEFFIELD,19592938,0.48 
Department of Health,NHS Sheffield CCG,30/11/2017,Hcare Srv Rec Fdtn Trust-Contract Baseline,ACUTE COMMISSIONING,BARNSLEY HOSPITAL NHS FOUNDATION TRUST,19604375,"72,098.00 "
Department of Health,NHS Sheffield CCG,30/11/2017,C&M-PMS Contract Value,PRC DELEGATED CO-COMMISSIONING,BARNSLEY ROAD SURGERY,19592942,"21,360.14 "
Department of Health,NHS Sheffield CCG,30/11/2017,C&M-PMS Funding Differential Review,PRC DELEGATED CO-COMMISSIONING,BARNSLEY ROAD SURGERY,19592942,370.25 
Department of Health,NHS Sheffield CCG,30/11/2017,C&M-PMS GP Statutory Levy,PRC DELEGATED CO-COMMISSIONING,BARNSLEY ROAD SURGERY,19592942,0.75 
Department of Health,NHS Sheffield CCG,30/11/2017,C&M-PMS PCO Other,PRC DELEGATED CO-COMMISSIONING,BARNSLEY ROAD SURGERY,19592942,384.50 
Department of Health,NHS Sheffield CCG,30/11/2017,C&M-PMS Prem Notional Rent,PRC DELEGATED CO-COMMISSIONING,BARNSLEY ROAD SURGERY,19592942,"2,652.17 "
Department of Health,NHS Sheffield CCG,30/11/2017,C&M-PMS Prem Rates,PRC DELEGATED CO-COMMISSIONING,BARNSLEY ROAD SURGERY,19592942,629.00 
Department of Health,NHS Sheffield CCG,30/11/2017,C&M-PMS QOF Aspiration,PRC DELEGATED CO-COMMISSIONING,BARNSLEY ROAD SURGERY,19592942,"2,500.90 "
Department of Health,NHS Sheffield CCG,30/11/2017,C&M-PMS Voluntary Levy,PRC DELEGATED CO-COMMISSIONING,BARNSLEY ROAD SURGERY,19592942,0.13 
Department of Health,NHS Sheffield CCG,30/11/2017,C&M-GMS Cost of Drugs -Prescribing,LOCAL ENHANCED SERVICES,BASLOW ROAD & SHOREHAM STREET SURGERIES,19820232,"6,355.51 "
Department of Health,NHS Sheffield CCG,30/11/2017,C&M-GMS DES Learn Dsblty Hlth Chk,PRC DELEGATED CO-COMMISSIONING,BASLOW ROAD & SHOREHAM STREET SURGERIES,19820232,420.00 
Department of Health,NHS Sheffield CCG,30/11/2017,C&M-GMS DES Minor Surgery,PRC DELEGATED CO-COMMISSIONING,BASLOW ROAD & SHOREHAM STREET SURGERIES,19820232,"4,695.00 "
Department of Health,NHS Sheffield CCG,30/11/2017,C&M-GMS Global Sum,PRC DELEGATED CO-COMMISSIONING,BASLOW ROAD & SHOREHAM STREET SURGERIES,19820232,"93,544.95 "
Department of Health,NHS Sheffield CCG,30/11/2017,C&M-GMS MPIG Correction Factor,PRC DELEGATED CO-COMMISSIONING,BASLOW ROAD & SHOREHAM STREET SURGERIES,19820232,438.64 
Department of Health,NHS Sheffield CCG,30/11/2017,C&M-GMS Prem Notional Rent,PRC DELEGATED CO-COMMISSIONING,BASLOW ROAD & SHOREHAM STREET SURGERIES,19820232,"8,511.25 "
Department of Health,NHS Sheffield CCG,30/11/2017,C&M-GMS Prem Rates,PRC DELEGATED CO-COMMISSIONING,BASLOW ROAD & SHOREHAM STREET SURGERIES,19820232,"2,062.00 "
Department of Health,NHS Sheffield CCG,30/11/2017,C&M-GMS Prof Fees Prescribing,PRC DELEGATED CO-COMMISSIONING,BASLOW ROAD & SHOREHAM STREET SURGERIES,19820232,"1,805.85 "
Department of Health,NHS Sheffield CCG,30/11/2017,C&M-GMS QOF Aspiration,PRC DELEGATED CO-COMMISSIONING,BASLOW ROAD & SHOREHAM STREET SURGERIES,19820232,"10,284.12 "
Department of Health,NHS Sheffield CCG,30/11/2017,C&M-PMS Contract Value,PRC DELEGATED CO-COMMISSIONING,BIRLEY HEALTH CENTRE,19592944,"61,838.52 "
Department of Health,NHS Sheffield CCG,30/11/2017,C&M-PMS DES Minor Surgery,PRC DELEGATED CO-COMMISSIONING,BIRLEY HEALTH CENTRE,19592944,"2,060.00 "
Department of Health,NHS Sheffield CCG,30/11/2017,C&M-PMS Funding Differential Review,PRC DELEGATED CO-COMMISSIONING,BIRLEY HEALTH CENTRE,19592944,"2,653.00 "
Department of Health,NHS Sheffield CCG,30/11/2017,C&M-PMS PCO Other,PRC DELEGATED CO-COMMISSIONING,BIRLEY HEALTH CENTRE,19592944,452.60 
Department of Health,NHS Sheffield CCG,30/11/2017,C&M-PMS Prem Notional Rent,PRC DELEGATED CO-COMMISSIONING,BIRLEY HEALTH CENTRE,19592944,"7,775.48 "
Department of Health,NHS Sheffield CCG,30/11/2017,C&M-PMS QOF Aspiration,PRC DELEGATED CO-COMMISSIONING,BIRLEY HEALTH CENTRE,19592944,"8,879.62 "
Department of Health,NHS Sheffield CCG,30/11/2017,Clinical&Medical-Independent Sector,ACUTE COMMISSIONING,BMI HEALTHCARE COLLECTIONS,19563038,"77,530.74 "
Department of Health,NHS Sheffield CCG,30/11/2017,C&M-GMS Cost of Drugs -Prescribing,LOCAL ENHANCED SERVICES,BROOMHILL SURGERY,19820239,"2,312.59 "
Department of Health,NHS Sheffield CCG,30/11/2017,C&M-GMS DES Minor Surgery,PRC DELEGATED CO-COMMISSIONING,BROOMHILL SURGERY,19820239,870.00 
Department of Health,NHS Sheffield CCG,30/11/2017,C&M-GMS DES UNPLANNED ADMISSIONS,PRC DELEGATED CO-COMMISSIONING,BROOMHILL SURGERY,19820239,"7,214.90 "
Department of Health,NHS Sheffield CCG,30/11/2017,C&M-GMS Global Sum,PRC DELEGATED CO-COMMISSIONING,BROOMHILL SURGERY,19820239,"60,904.48 "
Department of Health,NHS Sheffield CCG,30/11/2017,C&M-GMS MPIG Correction Factor,PRC DELEGATED CO-COMMISSIONING,BROOMHILL SURGERY,19820239,753.01 
Department of Health,NHS Sheffield CCG,30/11/2017,C&M-GMS Prem Cost Rent,PRC DELEGATED CO-COMMISSIONING,BROOMHILL SURGERY,19820239,"3,380.00 "
Department of Health,NHS Sheffield CCG,30/11/2017,C&M-GMS Prem Notional Rent,PRC DELEGATED CO-COMMISSIONING,BROOMHILL SURGERY,19820239,"2,541.67 "
Department of Health,NHS Sheffield CCG,30/11/2017,C&M-GMS Prem Rates,PRC DELEGATED CO-COMMISSIONING,BROOMHILL SURGERY,19820239,"1,794.00 "
Department of Health,NHS Sheffield CCG,30/11/2017,C&M-GMS Prof Fees Prescribing,PRC DELEGATED CO-COMMISSIONING,BROOMHILL SURGERY,19820239,395.69 
Department of Health,NHS Sheffield CCG,30/11/2017,C&M-GMS QOF Aspiration,PRC DELEGATED CO-COMMISSIONING,BROOMHILL SURGERY,19820239,"6,516.86 "
Department of Health,NHS Sheffield CCG,30/11/2017,C&M-GMS IT Comm Servs -GP Practices,PRIMARY CARE IT,BT GLOBAL SERVICES,19784775,"23,025.28 "
Department of Health,NHS Sheffield CCG,30/11/2017,Computer Software/License,CORPORATE COSTS & SERVICES,BT GLOBAL SERVICES,19784775,"5,077.44 "
Department of Health,NHS Sheffield CCG,30/11/2017,C&M-GMS Cost of Drugs -Prescribing,LOCAL ENHANCED SERVICES,BUCHANAN ROAD SURGERY,19820235,"5,910.42 "
Department of Health,NHS Sheffield CCG,30/11/2017,C&M-GMS DES Minor Surgery,PRC DELEGATED CO-COMMISSIONING,BUCHANAN ROAD SURGERY,19820235,280.00 
Department of Health,NHS Sheffield CCG,30/11/2017,C&M-GMS Global Sum,PRC DELEGATED CO-COMMISSIONING,BUCHANAN ROAD SURGERY,19820235,"34,978.06 "
Department of Health,NHS Sheffield CCG,30/11/2017,C&M-GMS MPIG Correction Factor,PRC DELEGATED CO-COMMISSIONING,BUCHANAN ROAD SURGERY,19820235,"1,965.76 "
Department of Health,NHS Sheffield CCG,30/11/2017,C&M-GMS Prem Notional Rent,PRC DELEGATED CO-COMMISSIONING,BUCHANAN ROAD SURGERY,19820235,"2,595.83 "
Department of Health,NHS Sheffield CCG,30/11/2017,C&M-GMS Prem Rates,PRC DELEGATED CO-COMMISSIONING,BUCHANAN ROAD SURGERY,19820235,839.00 
Department of Health,NHS Sheffield CCG,30/11/2017,C&M-GMS Prem Water Rates,PRC DELEGATED CO-COMMISSIONING,BUCHANAN ROAD SURGERY,19820235,257.53 
Department of Health,NHS Sheffield CCG,30/11/2017,C&M-GMS Prof Fees Prescribing,PRC DELEGATED CO-COMMISSIONING,BUCHANAN ROAD SURGERY,19820235,"1,774.01 "
Department of Health,NHS Sheffield CCG,30/11/2017,C&M-GMS QOF Aspiration,PRC DELEGATED CO-COMMISSIONING,BUCHANAN ROAD SURGERY,19820235,"4,538.47 "
Department of Health,NHS Sheffield CCG,30/11/2017,C&M-PMS Contract Value,PRC DELEGATED CO-COMMISSIONING,BURNCROSS SURGERY,19592946,"119,285.95 "
Department of Health,NHS Sheffield CCG,30/11/2017,C&M-PMS DES Learn Dsblty Hlth Chk,PRC DELEGATED CO-COMMISSIONING,BURNCROSS SURGERY,19592946,"1,960.00 "
Department of Health,NHS Sheffield CCG,30/11/2017,C&M-PMS DES Minor Surgery,PRC DELEGATED CO-COMMISSIONING,BURNCROSS SURGERY,19592946,"2,270.00 "
Department of Health,NHS Sheffield CCG,30/11/2017,C&M-PMS Funding Differential Review,PRC DELEGATED CO-COMMISSIONING,BURNCROSS SURGERY,19592946,"1,648.42 "
Department of Health,NHS Sheffield CCG,30/11/2017,C&M-PMS GP Statutory Levy,PRC DELEGATED CO-COMMISSIONING,BURNCROSS SURGERY,19592946,0.27 
Department of Health,NHS Sheffield CCG,30/11/2017,C&M-PMS Prem Notional Rent,PRC DELEGATED CO-COMMISSIONING,BURNCROSS SURGERY,19592946,"14,058.33 "
Department of Health,NHS Sheffield CCG,30/11/2017,C&M-PMS Prem Rates,PRC DELEGATED CO-COMMISSIONING,BURNCROSS SURGERY,19592946,"2,376.30 "
Department of Health,NHS Sheffield CCG,30/11/2017,C&M-PMS QOF Aspiration,PRC DELEGATED CO-COMMISSIONING,BURNCROSS SURGERY,19592946,"14,930.79 "
Department of Health,NHS Sheffield CCG,30/11/2017,C&M-PMS Voluntary Levy,PRC DELEGATED CO-COMMISSIONING,BURNCROSS SURGERY,19592946,0.04 
Department of Health,NHS Sheffield CCG,30/11/2017,C&M-PMS Contract Value,PRC DELEGATED CO-COMMISSIONING,BURNGREAVE SURGERY,19592948,"54,639.42 "
Department of Health,NHS Sheffield CCG,30/11/2017,C&M-PMS DES Minor Surgery,PRC DELEGATED CO-COMMISSIONING,BURNGREAVE SURGERY,19592948,"1,510.00 "
Department of Health,NHS Sheffield CCG,30/11/2017,C&M-PMS Funding Differential Review,PRC DELEGATED CO-COMMISSIONING,BURNGREAVE SURGERY,19592948,"1,353.08 "
Department of Health,NHS Sheffield CCG,30/11/2017,C&M-PMS Out of Hours Opt Outs,PRC DELEGATED CO-COMMISSIONING,BURNGREAVE SURGERY,19592948,6.13 
Department of Health,NHS Sheffield CCG,30/11/2017,C&M-PMS Prem Notional Rent,PRC DELEGATED CO-COMMISSIONING,BURNGREAVE SURGERY,19592948,"6,622.91 "
Department of Health,NHS Sheffield CCG,30/11/2017,C&M-PMS Prem Rates,PRC DELEGATED CO-COMMISSIONING,BURNGREAVE SURGERY,19592948,"1,877.00 "
Department of Health,NHS Sheffield CCG,30/11/2017,C&M-PMS QOF Aspiration,PRC DELEGATED CO-COMMISSIONING,BURNGREAVE SURGERY,19592948,"5,148.30 "
Department of Health,NHS Sheffield CCG,30/11/2017,C&M-GMS GP Statutory Levy,PRC DELEGATED CO-COMMISSIONING,CARTERKNOWLE & DORE MEDICAL PRACTICE,19820243,(370.32)
Department of Health,NHS Sheffield CCG,30/11/2017,C&M-GMS Voluntary Levy,PRC DELEGATED CO-COMMISSIONING,CARTERKNOWLE & DORE MEDICAL PRACTICE,19820243,(61.72)
Department of Health,NHS Sheffield CCG,30/11/2017,C&M-GMS Cost of Drugs -Prescribing,LOCAL ENHANCED SERVICES,CARTERKNOWLE & DORE MEDICAL PRACTICE,19820244,"5,251.66 "
Department of Health,NHS Sheffield CCG,30/11/2017,C&M-GMS DES Minor Surgery,PRC DELEGATED CO-COMMISSIONING,CARTERKNOWLE & DORE MEDICAL PRACTICE,19820244,"2,400.00 "
Department of Health,NHS Sheffield CCG,30/11/2017,C&M-GMS Global Sum,PRC DELEGATED CO-COMMISSIONING,CARTERKNOWLE & DORE MEDICAL PRACTICE,19820244,"79,841.76 "
Department of Health,NHS Sheffield CCG,30/11/2017,C&M-GMS MPIG Correction Factor,PRC DELEGATED CO-COMMISSIONING,CARTERKNOWLE & DORE MEDICAL PRACTICE,19820244,"2,241.88 "
Department of Health,NHS Sheffield CCG,30/11/2017,C&M-GMS Prem Notional Rent,PRC DELEGATED CO-COMMISSIONING,CARTERKNOWLE & DORE MEDICAL PRACTICE,19820244,"7,538.34 "
Department of Health,NHS Sheffield CCG,30/11/2017,C&M-GMS Prof Fees Prescribing,PRC DELEGATED CO-COMMISSIONING,CARTERKNOWLE & DORE MEDICAL PRACTICE,19820244,"1,096.83 "
Department of Health,NHS Sheffield CCG,30/11/2017,C&M-GMS QOF Aspiration,PRC DELEGATED CO-COMMISSIONING,CARTERKNOWLE & DORE MEDICAL PRACTICE,19820244,"10,317.62 "
Department of Health,NHS Sheffield CCG,30/11/2017,C&M-GMS Cost of Drugs -Prescribing,LOCAL ENHANCED SERVICES,CHARNOCK HEALTH PRIMARY CARE CENTRE,19820241,"9,749.58 "
Department of Health,NHS Sheffield CCG,30/11/2017,C&M-GMS DES Minor Surgery,PRC DELEGATED CO-COMMISSIONING,CHARNOCK HEALTH PRIMARY CARE CENTRE,19820241,"1,980.00 "
Department of Health,NHS Sheffield CCG,30/11/2017,C&M-GMS Global Sum,PRC DELEGATED CO-COMMISSIONING,CHARNOCK HEALTH PRIMARY CARE CENTRE,19820241,"39,043.56 "
Department of Health,NHS Sheffield CCG,30/11/2017,C&M-GMS MPIG Correction Factor,PRC DELEGATED CO-COMMISSIONING,CHARNOCK HEALTH PRIMARY CARE CENTRE,19820241,619.87 
Department of Health,NHS Sheffield CCG,30/11/2017,C&M-GMS PCO Other,PRC DELEGATED CO-COMMISSIONING,CHARNOCK HEALTH PRIMARY CARE CENTRE,19820241,452.60 
Department of Health,NHS Sheffield CCG,30/11/2017,C&M-GMS Prem Notional Rent,PRC DELEGATED CO-COMMISSIONING,CHARNOCK HEALTH PRIMARY CARE CENTRE,19820241,305.00 
Department of Health,NHS Sheffield CCG,30/11/2017,C&M-GMS Prem Rates,PRC DELEGATED CO-COMMISSIONING,CHARNOCK HEALTH PRIMARY CARE CENTRE,19820241,"1,111.00 "
Department of Health,NHS Sheffield CCG,30/11/2017,C&M-GMS Prof Fees Prescribing,PRC DELEGATED CO-COMMISSIONING,CHARNOCK HEALTH PRIMARY CARE CENTRE,19820241,"3,045.79 "
Department of Health,NHS Sheffield CCG,30/11/2017,C&M-GMS QOF Aspiration,PRC DELEGATED CO-COMMISSIONING,CHARNOCK HEALTH PRIMARY CARE CENTRE,19820241,"4,669.55 "
Department of Health,NHS Sheffield CCG,30/11/2017,Clinical&Medical-Independent Sector,ACUTE COMMISSIONING,CLAREMONT HOSPITAL,19604581,"78,290.00 "
Department of Health,NHS Sheffield CCG,30/11/2017,Voids and Subsidies,PRC DELEGATED CO-COMMISSIONING,COMMUNITY HEALTH PARTNERSHIPS LTD,19508560,"13,201.32 "
Department of Health,NHS Sheffield CCG,30/11/2017,Voids and Subsidies,RECHARGES NHS PROPERTY SERVICES LTD,COMMUNITY HEALTH PARTNERSHIPS LTD,19508560,"114,122.91 "
Department of Health,NHS Sheffield CCG,30/11/2017,Cont Care-Funded Nursing Care Allow,FUNDED NURSING CARE,COUNTRY COURT CARE LTD,19647686,"32,560.50 "
Department of Health,NHS Sheffield CCG,30/11/2017,C&M-GMS Cost of Drugs -Prescribing,LOCAL ENHANCED SERVICES,CROOKES PRACTICE,19820248,"3,581.79 "
Department of Health,NHS Sheffield CCG,30/11/2017,C&M-GMS Global Sum,PRC DELEGATED CO-COMMISSIONING,CROOKES PRACTICE,19820248,"47,207.91 "
Department of Health,NHS Sheffield CCG,30/11/2017,C&M-GMS MPIG Correction Factor,PRC DELEGATED CO-COMMISSIONING,CROOKES PRACTICE,19820248,"2,318.88 "
Department of Health,NHS Sheffield CCG,30/11/2017,C&M-GMS PCO Other,PRC DELEGATED CO-COMMISSIONING,CROOKES PRACTICE,19820248,452.60 
Department of Health,NHS Sheffield CCG,30/11/2017,C&M-GMS Prem Notional Rent,PRC DELEGATED CO-COMMISSIONING,CROOKES PRACTICE,19820248,"3,752.42 "
Department of Health,NHS Sheffield CCG,30/11/2017,C&M-GMS Prem Rates,PRC DELEGATED CO-COMMISSIONING,CROOKES PRACTICE,19820248,"1,444.00 "
Department of Health,NHS Sheffield CCG,30/11/2017,C&M-GMS Prof Fees Prescribing,PRC DELEGATED CO-COMMISSIONING,CROOKES PRACTICE,19820248,858.50 
Department of Health,NHS Sheffield CCG,30/11/2017,C&M-GMS QOF Aspiration,PRC DELEGATED CO-COMMISSIONING,CROOKES PRACTICE,19820248,"4,702.76 "
Department of Health,NHS Sheffield CCG,30/11/2017,C&M-PMS Contract Value,PRC DELEGATED CO-COMMISSIONING,DEEPCAR MEDICAL CENTRE,19592952,"39,305.03 "
Department of Health,NHS Sheffield CCG,30/11/2017,C&M-PMS DES Minor Surgery,PRC DELEGATED CO-COMMISSIONING,DEEPCAR MEDICAL CENTRE,19592952,80.00 
Department of Health,NHS Sheffield CCG,30/11/2017,C&M-PMS Funding Differential Review,PRC DELEGATED CO-COMMISSIONING,DEEPCAR MEDICAL CENTRE,19592952,306.08 
Department of Health,NHS Sheffield CCG,30/11/2017,C&M-PMS Prem Healthcentre Rent,PRC DELEGATED CO-COMMISSIONING,DEEPCAR MEDICAL CENTRE,19592952,"27,983.03 "
Department of Health,NHS Sheffield CCG,30/11/2017,C&M-PMS QOF Aspiration,PRC DELEGATED CO-COMMISSIONING,DEEPCAR MEDICAL CENTRE,19592952,"4,452.12 "
Department of Health,NHS Sheffield CCG,30/11/2017,Other professional fees,BEREAVEMENT SERVICE,DELOITTE MCS LTD,19754367,"107,136.00 "
Department of Health,NHS Sheffield CCG,30/11/2017,C&M-GMS Cost of Drugs -Prescribing,LOCAL ENHANCED SERVICES,DEVONSHIRE GREEN MEDICAL CENTRE,19820253,"3,149.00 "
Department of Health,NHS Sheffield CCG,30/11/2017,C&M-GMS DES Minor Surgery,PRC DELEGATED CO-COMMISSIONING,DEVONSHIRE GREEN MEDICAL CENTRE,19820253,200.00 
Department of Health,NHS Sheffield CCG,30/11/2017,C&M-GMS Global Sum,PRC DELEGATED CO-COMMISSIONING,DEVONSHIRE GREEN MEDICAL CENTRE,19820253,"43,424.76 "
Department of Health,NHS Sheffield CCG,30/11/2017,C&M-GMS MPIG Correction Factor,PRC DELEGATED CO-COMMISSIONING,DEVONSHIRE GREEN MEDICAL CENTRE,19820253,"4,846.80 "
Department of Health,NHS Sheffield CCG,30/11/2017,C&M-GMS Prem Notional Rent,PRC DELEGATED CO-COMMISSIONING,DEVONSHIRE GREEN MEDICAL CENTRE,19820253,"5,987.50 "
Department of Health,NHS Sheffield CCG,30/11/2017,C&M-GMS Prof Fees Prescribing,PRC DELEGATED CO-COMMISSIONING,DEVONSHIRE GREEN MEDICAL CENTRE,19820253,925.60 
Department of Health,NHS Sheffield CCG,30/11/2017,C&M-GMS QOF Aspiration,PRC DELEGATED CO-COMMISSIONING,DEVONSHIRE GREEN MEDICAL CENTRE,19820253,"5,205.83 "
Department of Health,NHS Sheffield CCG,30/11/2017,Other Gen Supplies & Srv,CLINICAL LEADS,DONCASTER AND BASSETLAW HOSPITALS NHS FOUNDATION TRUST,19692108,"68,000.00 "
Department of Health,NHS Sheffield CCG,30/11/2017,Hcare Srv Rec Fdtn Trust-Contract Baseline,ACUTE COMMISSIONING,DONCASTER AND BASSETLAW HOSPITALS NHS FOUNDATION TRUST,19709799,"34,715.00 "
Department of Health,NHS Sheffield CCG,30/11/2017,C&M-PMS Contract Value,PRC DELEGATED CO-COMMISSIONING,DOVERCOURT SURGERY,19592954,"69,197.69 "
Department of Health,NHS Sheffield CCG,30/11/2017,C&M-PMS DES Minor Surgery,PRC DELEGATED CO-COMMISSIONING,DOVERCOURT SURGERY,19592954,"1,160.00 "
Department of Health,NHS Sheffield CCG,30/11/2017,C&M-PMS Funding Differential Review,PRC DELEGATED CO-COMMISSIONING,DOVERCOURT SURGERY,19592954,"3,616.08 "
Department of Health,NHS Sheffield CCG,30/11/2017,C&M-PMS Prem Actual Rent,PRC DELEGATED CO-COMMISSIONING,DOVERCOURT SURGERY,19592954,"12,400.00 "
Department of Health,NHS Sheffield CCG,30/11/2017,C&M-PMS Prem Notional Rent,PRC DELEGATED CO-COMMISSIONING,DOVERCOURT SURGERY,19592954,"1,708.34 "
Department of Health,NHS Sheffield CCG,30/11/2017,C&M-PMS QOF Aspiration,PRC DELEGATED CO-COMMISSIONING,DOVERCOURT SURGERY,19592954,"7,505.03 "
Department of Health,NHS Sheffield CCG,30/11/2017,C&M-PMS Contract Value,PRC DELEGATED CO-COMMISSIONING,DR MEHROTRA & PARTNER,19618755,"27,162.37 "
Department of Health,NHS Sheffield CCG,30/11/2017,C&M-PMS Funding Differential Review,PRC DELEGATED CO-COMMISSIONING,DR MEHROTRA & PARTNER,19618755,885.92 
Department of Health,NHS Sheffield CCG,30/11/2017,C&M-PMS GP Statutory Levy,PRC DELEGATED CO-COMMISSIONING,DR MEHROTRA & PARTNER,19618755,0.63 
Department of Health,NHS Sheffield CCG,30/11/2017,C&M-PMS PCO Locum Adop/Pat/Mat,PRC DELEGATED CO-COMMISSIONING,DR MEHROTRA & PARTNER,19618755,"2,263.48 "
Department of Health,NHS Sheffield CCG,30/11/2017,C&M-PMS PCO Other,PRC DELEGATED CO-COMMISSIONING,DR MEHROTRA & PARTNER,19618755,384.50 
Department of Health,NHS Sheffield CCG,30/11/2017,C&M-PMS Prem Notional Rent,PRC DELEGATED CO-COMMISSIONING,DR MEHROTRA & PARTNER,19618755,"5,157.33 "
Department of Health,NHS Sheffield CCG,30/11/2017,C&M-PMS Prem Rates,PRC DELEGATED CO-COMMISSIONING,DR MEHROTRA & PARTNER,19618755,"1,322.00 "
Department of Health,NHS Sheffield CCG,30/11/2017,C&M-PMS QOF Aspiration,PRC DELEGATED CO-COMMISSIONING,DR MEHROTRA & PARTNER,19618755,"3,389.93 "
Department of Health,NHS Sheffield CCG,30/11/2017,C&M-PMS Voluntary Levy,PRC DELEGATED CO-COMMISSIONING,DR MEHROTRA & PARTNER,19618755,0.11 
Department of Health,NHS Sheffield CCG,30/11/2017,C&M-PMS Contract Value,PRC DELEGATED CO-COMMISSIONING,DR MILNER & PARTNERS,19592957,"73,035.52 "
Department of Health,NHS Sheffield CCG,30/11/2017,C&M-PMS DES Minor Surgery,PRC DELEGATED CO-COMMISSIONING,DR MILNER & PARTNERS,19592957,"2,085.00 "
Department of Health,NHS Sheffield CCG,30/11/2017,C&M-PMS Funding Differential Review,PRC DELEGATED CO-COMMISSIONING,DR MILNER & PARTNERS,19592957,"4,581.42 "
Department of Health,NHS Sheffield CCG,30/11/2017,C&M-PMS PCO Locum Adop/Pat/Mat,PRC DELEGATED CO-COMMISSIONING,DR MILNER & PARTNERS,19592957,"5,201.54 "
Department of Health,NHS Sheffield CCG,30/11/2017,C&M-PMS Prem Actual Rent,PRC DELEGATED CO-COMMISSIONING,DR MILNER & PARTNERS,19592957,"11,382.00 "
Department of Health,NHS Sheffield CCG,30/11/2017,C&M-PMS Prem Notional Rent,PRC DELEGATED CO-COMMISSIONING,DR MILNER & PARTNERS,19592957,"4,462.41 "
Department of Health,NHS Sheffield CCG,30/11/2017,C&M-PMS Prem Rates,PRC DELEGATED CO-COMMISSIONING,DR MILNER & PARTNERS,19592957,"1,921.00 "
Department of Health,NHS Sheffield CCG,30/11/2017,C&M-PMS QOF Aspiration,PRC DELEGATED CO-COMMISSIONING,DR MILNER & PARTNERS,19592957,"7,385.62 "
Department of Health,NHS Sheffield CCG,30/11/2017,C&M-GMS Cost of Drugs -Prescribing,LOCAL ENHANCED SERVICES,DUKE MEDICAL CENTRE,19820261,"4,860.38 "
Department of Health,NHS Sheffield CCG,30/11/2017,C&M-GMS DES Minor Surgery,PRC DELEGATED CO-COMMISSIONING,DUKE MEDICAL CENTRE,19820261,"1,000.00 "
Department of Health,NHS Sheffield CCG,30/11/2017,C&M-GMS Global Sum,PRC DELEGATED CO-COMMISSIONING,DUKE MEDICAL CENTRE,19820261,"54,296.42 "
Department of Health,NHS Sheffield CCG,30/11/2017,C&M-GMS MPIG Correction Factor,PRC DELEGATED CO-COMMISSIONING,DUKE MEDICAL CENTRE,19820261,918.76 
Department of Health,NHS Sheffield CCG,30/11/2017,C&M-GMS Prem Notional Rent,PRC DELEGATED CO-COMMISSIONING,DUKE MEDICAL CENTRE,19820261,"5,721.67 "
Department of Health,NHS Sheffield CCG,30/11/2017,C&M-GMS Prof Fees Prescribing,PRC DELEGATED CO-COMMISSIONING,DUKE MEDICAL CENTRE,19820261,"1,443.94 "
Department of Health,NHS Sheffield CCG,30/11/2017,C&M-GMS QOF Aspiration,PRC DELEGATED CO-COMMISSIONING,DUKE MEDICAL CENTRE,19820261,"5,346.37 "
Department of Health,NHS Sheffield CCG,30/11/2017,C&M-PMS Contract Value,PRC DELEGATED CO-COMMISSIONING,DUNNINC ROAD SURGERY,19592959,"23,306.82 "
Department of Health,NHS Sheffield CCG,30/11/2017,C&M-PMS DES Minor Surgery,PRC DELEGATED CO-COMMISSIONING,DUNNINC ROAD SURGERY,19592959,"1,900.00 "
Department of Health,NHS Sheffield CCG,30/11/2017,C&M-PMS Funding Differential Review,PRC DELEGATED CO-COMMISSIONING,DUNNINC ROAD SURGERY,19592959,"1,218.67 "
Department of Health,NHS Sheffield CCG,30/11/2017,C&M-PMS GP Statutory Levy,PRC DELEGATED CO-COMMISSIONING,DUNNINC ROAD SURGERY,19592959,0.42 
Department of Health,NHS Sheffield CCG,30/11/2017,C&M-PMS Prem Actual Rent,PRC DELEGATED CO-COMMISSIONING,DUNNINC ROAD SURGERY,19592959,54.38 
Department of Health,NHS Sheffield CCG,30/11/2017,C&M-PMS Prem Notional Rent,PRC DELEGATED CO-COMMISSIONING,DUNNINC ROAD SURGERY,19592959,"1,664.59 "
Department of Health,NHS Sheffield CCG,30/11/2017,C&M-PMS QOF Aspiration,PRC DELEGATED CO-COMMISSIONING,DUNNINC ROAD SURGERY,19592959,"2,548.20 "
Department of Health,NHS Sheffield CCG,30/11/2017,C&M-PMS Voluntary Levy,PRC DELEGATED CO-COMMISSIONING,DUNNINC ROAD SURGERY,19592959,0.07 
Department of Health,NHS Sheffield CCG,30/11/2017,C&M-PMS Contract Value,PRC DELEGATED CO-COMMISSIONING,DYKES HALL MEDICAL CENTRE,19618756,"71,012.69 "
Department of Health,NHS Sheffield CCG,30/11/2017,C&M-PMS DES Minor Surgery,PRC DELEGATED CO-COMMISSIONING,DYKES HALL MEDICAL CENTRE,19618756,960.00 
Department of Health,NHS Sheffield CCG,30/11/2017,C&M-PMS Funding Differential Review,PRC DELEGATED CO-COMMISSIONING,DYKES HALL MEDICAL CENTRE,19618756,199.75 
Department of Health,NHS Sheffield CCG,30/11/2017,C&M-PMS PCO Doctors Ret Scheme,PRC DELEGATED CO-COMMISSIONING,DYKES HALL MEDICAL CENTRE,19618756,"5,644.63 "
Department of Health,NHS Sheffield CCG,30/11/2017,C&M-PMS Prem Notional Rent,PRC DELEGATED CO-COMMISSIONING,DYKES HALL MEDICAL CENTRE,19618756,"5,300.83 "
Department of Health,NHS Sheffield CCG,30/11/2017,C&M-PMS QOF Aspiration,PRC DELEGATED CO-COMMISSIONING,DYKES HALL MEDICAL CENTRE,19618756,"8,863.43 "
Department of Health,NHS Sheffield CCG,30/11/2017,C&M-PMS Contract Value,PRC DELEGATED CO-COMMISSIONING,EAST BANK MEDICAL CENTRE,19592962,"45,545.29 "
Department of Health,NHS Sheffield CCG,30/11/2017,C&M-PMS DES Minor Surgery,PRC DELEGATED CO-COMMISSIONING,EAST BANK MEDICAL CENTRE,19592962,420.00 
Department of Health,NHS Sheffield CCG,30/11/2017,C&M-PMS Funding Differential Review,PRC DELEGATED CO-COMMISSIONING,EAST BANK MEDICAL CENTRE,19592962,"1,588.17 "
Department of Health,NHS Sheffield CCG,30/11/2017,C&M-PMS Out of Hours Opt Outs,PRC DELEGATED CO-COMMISSIONING,EAST BANK MEDICAL CENTRE,19592962,25.26 
Department of Health,NHS Sheffield CCG,30/11/2017,C&M-PMS Prem Notional Rent,PRC DELEGATED CO-COMMISSIONING,EAST BANK MEDICAL CENTRE,19592962,"10,466.67 "
Department of Health,NHS Sheffield CCG,30/11/2017,C&M-PMS Prem Rates,PRC DELEGATED CO-COMMISSIONING,EAST BANK MEDICAL CENTRE,19592962,"4,981.00 "
Department of Health,NHS Sheffield CCG,30/11/2017,C&M-PMS QOF Aspiration,PRC DELEGATED CO-COMMISSIONING,EAST BANK MEDICAL CENTRE,19592962,"5,086.87 "
Department of Health,NHS Sheffield CCG,30/11/2017,C&M-GMS Cost of Drugs -Prescribing,LOCAL ENHANCED SERVICES,ECCLESFIELD GROUP PRACTICE,19820257,"3,462.00 "
Department of Health,NHS Sheffield CCG,30/11/2017,C&M-GMS DES Minor Surgery,PRC DELEGATED CO-COMMISSIONING,ECCLESFIELD GROUP PRACTICE,19820257,880.00 
Department of Health,NHS Sheffield CCG,30/11/2017,C&M-GMS Global Sum,PRC DELEGATED CO-COMMISSIONING,ECCLESFIELD GROUP PRACTICE,19820257,"63,522.58 "
Department of Health,NHS Sheffield CCG,30/11/2017,C&M-GMS PCO Other,PRC DELEGATED CO-COMMISSIONING,ECCLESFIELD GROUP PRACTICE,19820257,452.60 
Department of Health,NHS Sheffield CCG,30/11/2017,C&M-GMS Prem Notional Rent,PRC DELEGATED CO-COMMISSIONING,ECCLESFIELD GROUP PRACTICE,19820257,"6,805.42 "
Department of Health,NHS Sheffield CCG,30/11/2017,C&M-GMS Prem Rates,PRC DELEGATED CO-COMMISSIONING,ECCLESFIELD GROUP PRACTICE,19820257,"2,055.00 "
Department of Health,NHS Sheffield CCG,30/11/2017,C&M-GMS Prem Water Rates,PRC DELEGATED CO-COMMISSIONING,ECCLESFIELD GROUP PRACTICE,19820257,497.26 
Department of Health,NHS Sheffield CCG,30/11/2017,C&M-GMS Prof Fees Prescribing,PRC DELEGATED CO-COMMISSIONING,ECCLESFIELD GROUP PRACTICE,19820257,664.12 
Department of Health,NHS Sheffield CCG,30/11/2017,C&M-GMS QOF Aspiration,PRC DELEGATED CO-COMMISSIONING,ECCLESFIELD GROUP PRACTICE,19820257,"10,399.72 "
Department of Health,NHS Sheffield CCG,30/11/2017,C&M-GMS Cost of Drugs -Prescribing,LOCAL ENHANCED SERVICES,ELM LANE SURGERY,19820259,"3,037.11 "
Department of Health,NHS Sheffield CCG,30/11/2017,C&M-GMS DES Minor Surgery,PRC DELEGATED CO-COMMISSIONING,ELM LANE SURGERY,19820259,280.00 
Department of Health,NHS Sheffield CCG,30/11/2017,C&M-GMS Global Sum,PRC DELEGATED CO-COMMISSIONING,ELM LANE SURGERY,19820259,"38,199.17 "
Department of Health,NHS Sheffield CCG,30/11/2017,C&M-GMS MPIG Correction Factor,PRC DELEGATED CO-COMMISSIONING,ELM LANE SURGERY,19820259,"1,257.79 "
Department of Health,NHS Sheffield CCG,30/11/2017,C&M-GMS Prem Notional Rent,PRC DELEGATED CO-COMMISSIONING,ELM LANE SURGERY,19820259,"5,168.50 "
Department of Health,NHS Sheffield CCG,30/11/2017,C&M-GMS Prem Rates,PRC DELEGATED CO-COMMISSIONING,ELM LANE SURGERY,19820259,"1,268.00 "
Department of Health,NHS Sheffield CCG,30/11/2017,C&M-GMS Prem Water Rates,PRC DELEGATED CO-COMMISSIONING,ELM LANE SURGERY,19820259,99.74 
Department of Health,NHS Sheffield CCG,30/11/2017,C&M-GMS Prof Fees Prescribing,PRC DELEGATED CO-COMMISSIONING,ELM LANE SURGERY,19820259,701.13 
Department of Health,NHS Sheffield CCG,30/11/2017,C&M-GMS QOF Aspiration,PRC DELEGATED CO-COMMISSIONING,ELM LANE SURGERY,19820259,"4,880.72 "
Department of Health,NHS Sheffield CCG,30/11/2017,Cont Care-Physical Disab (<65),CHC ADULT FULLY FUNDED,FAIRWINDS HEALTH CARE LTD,19647692,"32,431.99 "
Department of Health,NHS Sheffield CCG,30/11/2017,C&M-PMS Contract Value,PRC DELEGATED CO-COMMISSIONING,FALKLAND HOUSE,19592966,"26,665.22 "
Department of Health,NHS Sheffield CCG,30/11/2017,C&M-PMS DES Minor Surgery,PRC DELEGATED CO-COMMISSIONING,FALKLAND HOUSE,19592966,920.00 
Department of Health,NHS Sheffield CCG,30/11/2017,C&M-PMS Funding Differential Review,PRC DELEGATED CO-COMMISSIONING,FALKLAND HOUSE,19592966,"1,255.92 "
Department of Health,NHS Sheffield CCG,30/11/2017,C&M-PMS GP Statutory Levy,PRC DELEGATED CO-COMMISSIONING,FALKLAND HOUSE,19592966,0.33 
Department of Health,NHS Sheffield CCG,30/11/2017,C&M-PMS Out of Hours Opt Outs,PRC DELEGATED CO-COMMISSIONING,FALKLAND HOUSE,19592966,83.02 
Department of Health,NHS Sheffield CCG,30/11/2017,C&M-PMS PCO Other,PRC DELEGATED CO-COMMISSIONING,FALKLAND HOUSE,19592966,384.50 
Department of Health,NHS Sheffield CCG,30/11/2017,C&M-PMS Prem Notional Rent,PRC DELEGATED CO-COMMISSIONING,FALKLAND HOUSE,19592966,"1,802.08 "
Department of Health,NHS Sheffield CCG,30/11/2017,C&M-PMS Prem Rates,PRC DELEGATED CO-COMMISSIONING,FALKLAND HOUSE,19592966,713.00 
Department of Health,NHS Sheffield CCG,30/11/2017,C&M-PMS QOF Aspiration,PRC DELEGATED CO-COMMISSIONING,FALKLAND HOUSE,19592966,"3,036.47 "
Department of Health,NHS Sheffield CCG,30/11/2017,C&M-PMS Voluntary Levy,PRC DELEGATED CO-COMMISSIONING,FALKLAND HOUSE,19592966,0.05 
Department of Health,NHS Sheffield CCG,30/11/2017,C&M-GMS Cost of Drugs -Prescribing,LOCAL ENHANCED SERVICES,FAR LANE MEDICAL CENTRE,19820268,"7,158.97 "
Department of Health,NHS Sheffield CCG,30/11/2017,C&M-GMS DES Minor Surgery,PRC DELEGATED CO-COMMISSIONING,FAR LANE MEDICAL CENTRE,19820268,"6,100.00 "
Department of Health,NHS Sheffield CCG,30/11/2017,C&M-GMS Global Sum,PRC DELEGATED CO-COMMISSIONING,FAR LANE MEDICAL CENTRE,19820268,"53,615.34 "
Department of Health,NHS Sheffield CCG,30/11/2017,C&M-GMS PCO Other,PRC DELEGATED CO-COMMISSIONING,FAR LANE MEDICAL CENTRE,19820268,452.60 
Department of Health,NHS Sheffield CCG,30/11/2017,C&M-GMS Prem Notional Rent,PRC DELEGATED CO-COMMISSIONING,FAR LANE MEDICAL CENTRE,19820268,"3,462.50 "
Department of Health,NHS Sheffield CCG,30/11/2017,C&M-GMS Prem Rates,PRC DELEGATED CO-COMMISSIONING,FAR LANE MEDICAL CENTRE,19820268,"1,053.00 "
Department of Health,NHS Sheffield CCG,30/11/2017,C&M-GMS Prem Water Rates,PRC DELEGATED CO-COMMISSIONING,FAR LANE MEDICAL CENTRE,19820268,127.93 
Department of Health,NHS Sheffield CCG,30/11/2017,C&M-GMS Prof Fees Prescribing,PRC DELEGATED CO-COMMISSIONING,FAR LANE MEDICAL CENTRE,19820268,"2,300.51 "
Department of Health,NHS Sheffield CCG,30/11/2017,C&M-GMS QOF Aspiration,PRC DELEGATED CO-COMMISSIONING,FAR LANE MEDICAL CENTRE,19820268,"6,224.50 "
Department of Health,NHS Sheffield CCG,30/11/2017,C&M-PMS Contract Value,PRC DELEGATED CO-COMMISSIONING,FIRTH PARK SURGERY,19592964,"70,899.69 "
Department of Health,NHS Sheffield CCG,30/11/2017,C&M-PMS DES Minor Surgery,PRC DELEGATED CO-COMMISSIONING,FIRTH PARK SURGERY,19592964,"1,990.00 "
Department of Health,NHS Sheffield CCG,30/11/2017,C&M-PMS Out of Hours Opt Outs,PRC DELEGATED CO-COMMISSIONING,FIRTH PARK SURGERY,19592964,1.00 
Department of Health,NHS Sheffield CCG,30/11/2017,C&M-PMS Prem Notional Rent,PRC DELEGATED CO-COMMISSIONING,FIRTH PARK SURGERY,19592964,"4,500.00 "
Department of Health,NHS Sheffield CCG,30/11/2017,C&M-PMS Prem Rates,PRC DELEGATED CO-COMMISSIONING,FIRTH PARK SURGERY,19592964,"1,291.00 "
Department of Health,NHS Sheffield CCG,30/11/2017,C&M-PMS QOF Aspiration,PRC DELEGATED CO-COMMISSIONING,FIRTH PARK SURGERY,19592964,"8,194.20 "
Department of Health,NHS Sheffield CCG,30/11/2017,C&M-GMS Cost of Drugs -Prescribing,LOCAL ENHANCED SERVICES,FLOWERS HEALTH CENTRE,19820342,303.09 
Department of Health,NHS Sheffield CCG,30/11/2017,C&M-GMS DES Minor Surgery,PRC DELEGATED CO-COMMISSIONING,FLOWERS HEALTH CENTRE,19820342,840.00 
Department of Health,NHS Sheffield CCG,30/11/2017,C&M-GMS Global Sum,PRC DELEGATED CO-COMMISSIONING,FLOWERS HEALTH CENTRE,19820342,"33,569.77 "
Department of Health,NHS Sheffield CCG,30/11/2017,C&M-GMS MPIG Correction Factor,PRC DELEGATED CO-COMMISSIONING,FLOWERS HEALTH CENTRE,19820342,"2,214.46 "
Department of Health,NHS Sheffield CCG,30/11/2017,C&M-GMS Prem Healthcentre Rent,PRC DELEGATED CO-COMMISSIONING,FLOWERS HEALTH CENTRE,19820342,"33,513.30 "
Department of Health,NHS Sheffield CCG,30/11/2017,C&M-GMS Prof Fees Prescribing,PRC DELEGATED CO-COMMISSIONING,FLOWERS HEALTH CENTRE,19820342,83.31 
Department of Health,NHS Sheffield CCG,30/11/2017,C&M-GMS QOF Aspiration,PRC DELEGATED CO-COMMISSIONING,FLOWERS HEALTH CENTRE,19820342,"4,334.56 "
Department of Health,NHS Sheffield CCG,30/11/2017,C&M-PMS Contract Value,PRC DELEGATED CO-COMMISSIONING,FOXHILL MEDICAL CENTRE SHEFFIELD,19593019,"50,462.52 "
Department of Health,NHS Sheffield CCG,30/11/2017,C&M-PMS DES Minor Surgery,PRC DELEGATED CO-COMMISSIONING,FOXHILL MEDICAL CENTRE SHEFFIELD,19593019,900.00 
Department of Health,NHS Sheffield CCG,30/11/2017,C&M-PMS Funding Differential Review,PRC DELEGATED CO-COMMISSIONING,FOXHILL MEDICAL CENTRE SHEFFIELD,19593019,"1,451.25 "
Department of Health,NHS Sheffield CCG,30/11/2017,C&M-PMS GP Statutory Levy,PRC DELEGATED CO-COMMISSIONING,FOXHILL MEDICAL CENTRE SHEFFIELD,19593019,0.81 
Department of Health,NHS Sheffield CCG,30/11/2017,C&M-PMS Out of Hours Opt Outs,PRC DELEGATED CO-COMMISSIONING,FOXHILL MEDICAL CENTRE SHEFFIELD,19593019,12.30 
Department of Health,NHS Sheffield CCG,30/11/2017,C&M-PMS PCO Other,PRC DELEGATED CO-COMMISSIONING,FOXHILL MEDICAL CENTRE SHEFFIELD,19593019,452.60 
Department of Health,NHS Sheffield CCG,30/11/2017,C&M-PMS Prem Healthcentre Rent,PRC DELEGATED CO-COMMISSIONING,FOXHILL MEDICAL CENTRE SHEFFIELD,19593019,"46,118.26 "
Department of Health,NHS Sheffield CCG,30/11/2017,C&M-PMS QOF Aspiration,PRC DELEGATED CO-COMMISSIONING,FOXHILL MEDICAL CENTRE SHEFFIELD,19593019,"5,736.75 "
Department of Health,NHS Sheffield CCG,30/11/2017,C&M-PMS Voluntary Levy,PRC DELEGATED CO-COMMISSIONING,FOXHILL MEDICAL CENTRE SHEFFIELD,19593019,0.14 
Department of Health,NHS Sheffield CCG,30/11/2017,C&M-PMS Contract Value,PRC DELEGATED CO-COMMISSIONING,GLEADLESS MEDICAL CENTRE,19592968,"67,346.75 "
Department of Health,NHS Sheffield CCG,30/11/2017,C&M-PMS DES Minor Surgery,PRC DELEGATED CO-COMMISSIONING,GLEADLESS MEDICAL CENTRE,19592968,480.00 
Department of Health,NHS Sheffield CCG,30/11/2017,C&M-PMS Funding Differential Review,PRC DELEGATED CO-COMMISSIONING,GLEADLESS MEDICAL CENTRE,19592968,"1,261.42 "
Department of Health,NHS Sheffield CCG,30/11/2017,C&M-PMS GP Statutory Levy,PRC DELEGATED CO-COMMISSIONING,GLEADLESS MEDICAL CENTRE,19592968,0.48 
Department of Health,NHS Sheffield CCG,30/11/2017,C&M-PMS Out of Hours Opt Outs,PRC DELEGATED CO-COMMISSIONING,GLEADLESS MEDICAL CENTRE,19592968,23.68 
Department of Health,NHS Sheffield CCG,30/11/2017,C&M-PMS PCO Other,PRC DELEGATED CO-COMMISSIONING,GLEADLESS MEDICAL CENTRE,19592968,452.60 
Department of Health,NHS Sheffield CCG,30/11/2017,C&M-PMS Prem Notional Rent,PRC DELEGATED CO-COMMISSIONING,GLEADLESS MEDICAL CENTRE,19592968,"6,750.00 "
Department of Health,NHS Sheffield CCG,30/11/2017,C&M-PMS Prem Rates,PRC DELEGATED CO-COMMISSIONING,GLEADLESS MEDICAL CENTRE,19592968,"1,250.00 "
Department of Health,NHS Sheffield CCG,30/11/2017,C&M-PMS QOF Aspiration,PRC DELEGATED CO-COMMISSIONING,GLEADLESS MEDICAL CENTRE,19592968,"8,204.51 "
Department of Health,NHS Sheffield CCG,30/11/2017,C&M-PMS Voluntary Levy,PRC DELEGATED CO-COMMISSIONING,GLEADLESS MEDICAL CENTRE,19592968,0.09 
Department of Health,NHS Sheffield CCG,30/11/2017,C&M-GMS Cost of Drugs -Prescribing,LOCAL ENHANCED SERVICES,GRENOSIDE SURGERY,19820275,"7,108.64 "
Department of Health,NHS Sheffield CCG,30/11/2017,C&M-GMS DES Minor Surgery,PRC DELEGATED CO-COMMISSIONING,GRENOSIDE SURGERY,19820275,160.00 
Department of Health,NHS Sheffield CCG,30/11/2017,C&M-GMS Global Sum,PRC DELEGATED CO-COMMISSIONING,GRENOSIDE SURGERY,19820275,"54,311.14 "
Department of Health,NHS Sheffield CCG,30/11/2017,C&M-GMS PCO Other,PRC DELEGATED CO-COMMISSIONING,GRENOSIDE SURGERY,19820275,452.60 
Department of Health,NHS Sheffield CCG,30/11/2017,C&M-GMS Prem Notional Rent,PRC DELEGATED CO-COMMISSIONING,GRENOSIDE SURGERY,19820275,"8,150.17 "
Department of Health,NHS Sheffield CCG,30/11/2017,C&M-GMS Prem Rates,PRC DELEGATED CO-COMMISSIONING,GRENOSIDE SURGERY,19820275,"1,643.00 "
Department of Health,NHS Sheffield CCG,30/11/2017,C&M-GMS Prem Water Rates,PRC DELEGATED CO-COMMISSIONING,GRENOSIDE SURGERY,19820275,117.07 
Department of Health,NHS Sheffield CCG,30/11/2017,C&M-GMS Prof Fees Prescribing,PRC DELEGATED CO-COMMISSIONING,GRENOSIDE SURGERY,19820275,"1,840.10 "
Department of Health,NHS Sheffield CCG,30/11/2017,C&M-GMS QOF Aspiration,PRC DELEGATED CO-COMMISSIONING,GRENOSIDE SURGERY,19820275,"6,197.70 "
Department of Health,NHS Sheffield CCG,30/11/2017,C&M-GMS Cost of Drugs -Prescribing,LOCAL ENHANCED SERVICES,GREYSTONES MEDICAL CENTRE,19820277,"2,075.63 "
Department of Health,NHS Sheffield CCG,30/11/2017,C&M-GMS DES Minor Surgery,PRC DELEGATED CO-COMMISSIONING,GREYSTONES MEDICAL CENTRE,19820277,860.00 
Department of Health,NHS Sheffield CCG,30/11/2017,C&M-GMS Global Sum,PRC DELEGATED CO-COMMISSIONING,GREYSTONES MEDICAL CENTRE,19820277,"18,752.82 "
Department of Health,NHS Sheffield CCG,30/11/2017,C&M-GMS MPIG Correction Factor,PRC DELEGATED CO-COMMISSIONING,GREYSTONES MEDICAL CENTRE,19820277,"1,656.69 "
Department of Health,NHS Sheffield CCG,30/11/2017,C&M-GMS PCO Other,PRC DELEGATED CO-COMMISSIONING,GREYSTONES MEDICAL CENTRE,19820277,384.50 
Department of Health,NHS Sheffield CCG,30/11/2017,C&M-GMS Prem Notional Rent,PRC DELEGATED CO-COMMISSIONING,GREYSTONES MEDICAL CENTRE,19820277,"2,885.42 "
Department of Health,NHS Sheffield CCG,30/11/2017,C&M-GMS Prem Rates,PRC DELEGATED CO-COMMISSIONING,GREYSTONES MEDICAL CENTRE,19820277,583.00 
Department of Health,NHS Sheffield CCG,30/11/2017,C&M-GMS Prof Fees Prescribing,PRC DELEGATED CO-COMMISSIONING,GREYSTONES MEDICAL CENTRE,19820277,634.04 
Department of Health,NHS Sheffield CCG,30/11/2017,C&M-GMS QOF Aspiration,PRC DELEGATED CO-COMMISSIONING,GREYSTONES MEDICAL CENTRE,19820277,"2,071.10 "
Department of Health,NHS Sheffield CCG,30/11/2017,C&M-PMS Contract Value,PRC DELEGATED CO-COMMISSIONING,HACKENTHORPE MEDICAL CENTRE,19618757,"46,460.38 "
Department of Health,NHS Sheffield CCG,30/11/2017,C&M-PMS DES Minor Surgery,PRC DELEGATED CO-COMMISSIONING,HACKENTHORPE MEDICAL CENTRE,19618757,"1,580.00 "
Department of Health,NHS Sheffield CCG,30/11/2017,C&M-PMS Funding Differential Review,PRC DELEGATED CO-COMMISSIONING,HACKENTHORPE MEDICAL CENTRE,19618757,"2,105.58 "
Department of Health,NHS Sheffield CCG,30/11/2017,C&M-PMS Out of Hours Opt Outs,PRC DELEGATED CO-COMMISSIONING,HACKENTHORPE MEDICAL CENTRE,19618757,5.71 
Department of Health,NHS Sheffield CCG,30/11/2017,C&M-PMS PCO Other,PRC DELEGATED CO-COMMISSIONING,HACKENTHORPE MEDICAL CENTRE,19618757,"3,620.80 "
Department of Health,NHS Sheffield CCG,30/11/2017,C&M-PMS Prem Notional Rent,PRC DELEGATED CO-COMMISSIONING,HACKENTHORPE MEDICAL CENTRE,19618757,"4,981.25 "
Department of Health,NHS Sheffield CCG,30/11/2017,C&M-PMS Prem Rates,PRC DELEGATED CO-COMMISSIONING,HACKENTHORPE MEDICAL CENTRE,19618757,"7,775.33 "
Department of Health,NHS Sheffield CCG,30/11/2017,C&M-PMS Prem Water Rates,PRC DELEGATED CO-COMMISSIONING,HACKENTHORPE MEDICAL CENTRE,19618757,589.11 
Department of Health,NHS Sheffield CCG,30/11/2017,C&M-PMS QOF Aspiration,PRC DELEGATED CO-COMMISSIONING,HACKENTHORPE MEDICAL CENTRE,19618757,"6,731.39 "
Department of Health,NHS Sheffield CCG,30/11/2017,C&M-GMS Cost of Drugs -Prescribing,LOCAL ENHANCED SERVICES,HANDSWORTH MEDICAL PRACTICE SHEFFIELD,19820273,"1,620.32 "
Department of Health,NHS Sheffield CCG,30/11/2017,C&M-GMS DES Minor Surgery,PRC DELEGATED CO-COMMISSIONING,HANDSWORTH MEDICAL PRACTICE SHEFFIELD,19820273,480.00 
Department of Health,NHS Sheffield CCG,30/11/2017,C&M-GMS Global Sum,PRC DELEGATED CO-COMMISSIONING,HANDSWORTH MEDICAL PRACTICE SHEFFIELD,19820273,"72,067.76 "
Department of Health,NHS Sheffield CCG,30/11/2017,C&M-GMS Prem Notional Rent,PRC DELEGATED CO-COMMISSIONING,HANDSWORTH MEDICAL PRACTICE SHEFFIELD,19820273,"3,321.66 "
Department of Health,NHS Sheffield CCG,30/11/2017,C&M-GMS Prem Rates,PRC DELEGATED CO-COMMISSIONING,HANDSWORTH MEDICAL PRACTICE SHEFFIELD,19820273,"1,214.00 "
Department of Health,NHS Sheffield CCG,30/11/2017,C&M-GMS Prof Fees Prescribing,PRC DELEGATED CO-COMMISSIONING,HANDSWORTH MEDICAL PRACTICE SHEFFIELD,19820273,282.32 
Department of Health,NHS Sheffield CCG,30/11/2017,C&M-GMS QOF Aspiration,PRC DELEGATED CO-COMMISSIONING,HANDSWORTH MEDICAL PRACTICE SHEFFIELD,19820273,"8,011.43 "
Department of Health,NHS Sheffield CCG,30/11/2017,Cont Care-Physical Disab (<65),CHC ADULT FULLY FUNDED,HC ONE LTD,19653023,"27,116.92 "
Department of Health,NHS Sheffield CCG,30/11/2017,C&M-GMS Cost of Drugs -Prescribing,LOCAL ENHANCED SERVICES,HEALTH CARE SURGERY,19820283,"1,867.85 "
Department of Health,NHS Sheffield CCG,30/11/2017,C&M-GMS DES Minor Surgery,PRC DELEGATED CO-COMMISSIONING,HEALTH CARE SURGERY,19820283,440.00 
Department of Health,NHS Sheffield CCG,30/11/2017,C&M-GMS Global Sum,PRC DELEGATED CO-COMMISSIONING,HEALTH CARE SURGERY,19820283,"36,324.22 "
Department of Health,NHS Sheffield CCG,30/11/2017,C&M-GMS MPIG Correction Factor,PRC DELEGATED CO-COMMISSIONING,HEALTH CARE SURGERY,19820283,"1,170.03 "
Department of Health,NHS Sheffield CCG,30/11/2017,C&M-GMS PCO Other,PRC DELEGATED CO-COMMISSIONING,HEALTH CARE SURGERY,19820283,384.50 
Department of Health,NHS Sheffield CCG,30/11/2017,C&M-GMS Prem Notional Rent,PRC DELEGATED CO-COMMISSIONING,HEALTH CARE SURGERY,19820283,"3,862.50 "
Department of Health,NHS Sheffield CCG,30/11/2017,C&M-GMS Prem Rates,PRC DELEGATED CO-COMMISSIONING,HEALTH CARE SURGERY,19820283,518.00 
Department of Health,NHS Sheffield CCG,30/11/2017,C&M-GMS Prof Fees Prescribing,PRC DELEGATED CO-COMMISSIONING,HEALTH CARE SURGERY,19820283,481.32 
Department of Health,NHS Sheffield CCG,30/11/2017,C&M-GMS QOF Aspiration,PRC DELEGATED CO-COMMISSIONING,HEALTH CARE SURGERY,19820283,"4,381.71 "
Department of Health,NHS Sheffield CCG,30/11/2017,C&M-GMS Cost of Drugs -Prescribing,LOCAL ENHANCED SERVICES,HEELEY GREEN SURGERY,19820279,671.10 
Department of Health,NHS Sheffield CCG,30/11/2017,C&M-GMS Global Sum,PRC DELEGATED CO-COMMISSIONING,HEELEY GREEN SURGERY,19820279,"39,703.11 "
Department of Health,NHS Sheffield CCG,30/11/2017,C&M-GMS MPIG Correction Factor,PRC DELEGATED CO-COMMISSIONING,HEELEY GREEN SURGERY,19820279,564.30 
Department of Health,NHS Sheffield CCG,30/11/2017,C&M-GMS Prem Notional Rent,PRC DELEGATED CO-COMMISSIONING,HEELEY GREEN SURGERY,19820279,"3,254.17 "
Department of Health,NHS Sheffield CCG,30/11/2017,C&M-GMS Prem Rates,PRC DELEGATED CO-COMMISSIONING,HEELEY GREEN SURGERY,19820279,245.00 
Department of Health,NHS Sheffield CCG,30/11/2017,C&M-GMS Prof Fees Prescribing,PRC DELEGATED CO-COMMISSIONING,HEELEY GREEN SURGERY,19820279,120.33 
Department of Health,NHS Sheffield CCG,30/11/2017,C&M-GMS QOF Aspiration,PRC DELEGATED CO-COMMISSIONING,HEELEY GREEN SURGERY,19820279,"4,920.38 "
Department of Health,NHS Sheffield CCG,30/11/2017,C&M-GMS Cost of Drugs -Prescribing,LOCAL ENHANCED SERVICES,HOLLIES MEDICAL CENTRE,19820281,"1,642.35 "
Department of Health,NHS Sheffield CCG,30/11/2017,C&M-GMS DES Minor Surgery,PRC DELEGATED CO-COMMISSIONING,HOLLIES MEDICAL CENTRE,19820281,910.00 
Department of Health,NHS Sheffield CCG,30/11/2017,C&M-GMS Global Sum,PRC DELEGATED CO-COMMISSIONING,HOLLIES MEDICAL CENTRE,19820281,"53,041.38 "
Department of Health,NHS Sheffield CCG,30/11/2017,C&M-GMS MPIG Correction Factor,PRC DELEGATED CO-COMMISSIONING,HOLLIES MEDICAL CENTRE,19820281,"2,179.09 "
Department of Health,NHS Sheffield CCG,30/11/2017,C&M-GMS PCO Other,PRC DELEGATED CO-COMMISSIONING,HOLLIES MEDICAL CENTRE,19820281,452.60 
Department of Health,NHS Sheffield CCG,30/11/2017,C&M-GMS Prem Notional Rent,PRC DELEGATED CO-COMMISSIONING,HOLLIES MEDICAL CENTRE,19820281,"3,229.17 "
Department of Health,NHS Sheffield CCG,30/11/2017,C&M-GMS Prem Rates,PRC DELEGATED CO-COMMISSIONING,HOLLIES MEDICAL CENTRE,19820281,"1,188.00 "
Department of Health,NHS Sheffield CCG,30/11/2017,C&M-GMS Prof Fees Prescribing,PRC DELEGATED CO-COMMISSIONING,HOLLIES MEDICAL CENTRE,19820281,270.73 
Department of Health,NHS Sheffield CCG,30/11/2017,C&M-GMS QOF Aspiration,PRC DELEGATED CO-COMMISSIONING,HOLLIES MEDICAL CENTRE,19820281,"6,561.21 "
Department of Health,NHS Sheffield CCG,30/11/2017,Cont Care-Physical Disab (<65),CHC ADULT FULLY FUNDED,HORIZON CARE HOMES LTD,19563230,"69,223.95 "
Department of Health,NHS Sheffield CCG,30/11/2017,Cont Care-Physical Disab (<65),CHC ADULT FULLY FUNDED,HORIZON CARE HOMES LTD,19563236,"48,279.52 "
Department of Health,NHS Sheffield CCG,30/11/2017,Cont Care-Physical Disab (<65),CHC ADULT FULLY FUNDED,HORIZON CARE HOMES LTD,19652942,"36,628.16 "
Department of Health,NHS Sheffield CCG,30/11/2017,C&M-PMS Contract Value,PRC DELEGATED CO-COMMISSIONING,JAUNTY SPRINGS HEALTH CENTRE,19592973,"28,777.86 "
Department of Health,NHS Sheffield CCG,30/11/2017,C&M-PMS DES Minor Surgery,PRC DELEGATED CO-COMMISSIONING,JAUNTY SPRINGS HEALTH CENTRE,19592973,375.00 
Department of Health,NHS Sheffield CCG,30/11/2017,C&M-PMS Funding Differential Review,PRC DELEGATED CO-COMMISSIONING,JAUNTY SPRINGS HEALTH CENTRE,19592973,448.00 
Department of Health,NHS Sheffield CCG,30/11/2017,C&M-PMS GP Statutory Levy,PRC DELEGATED CO-COMMISSIONING,JAUNTY SPRINGS HEALTH CENTRE,19592973,0.51 
Department of Health,NHS Sheffield CCG,30/11/2017,C&M-PMS Out of Hours Opt Outs,PRC DELEGATED CO-COMMISSIONING,JAUNTY SPRINGS HEALTH CENTRE,19592973,7.88 
Department of Health,NHS Sheffield CCG,30/11/2017,C&M-PMS PCO Other,PRC DELEGATED CO-COMMISSIONING,JAUNTY SPRINGS HEALTH CENTRE,19592973,384.50 
Department of Health,NHS Sheffield CCG,30/11/2017,C&M-PMS Prem Notional Rent,PRC DELEGATED CO-COMMISSIONING,JAUNTY SPRINGS HEALTH CENTRE,19592973,"3,208.33 "
Department of Health,NHS Sheffield CCG,30/11/2017,C&M-PMS Prem Rates,PRC DELEGATED CO-COMMISSIONING,JAUNTY SPRINGS HEALTH CENTRE,19592973,"2,626.75 "
Department of Health,NHS Sheffield CCG,30/11/2017,C&M-PMS Prem Water Rates,PRC DELEGATED CO-COMMISSIONING,JAUNTY SPRINGS HEALTH CENTRE,19592973,39.53 
Department of Health,NHS Sheffield CCG,30/11/2017,C&M-PMS QOF Aspiration,PRC DELEGATED CO-COMMISSIONING,JAUNTY SPRINGS HEALTH CENTRE,19592973,"4,393.31 "
Department of Health,NHS Sheffield CCG,30/11/2017,C&M-PMS Voluntary Levy,PRC DELEGATED CO-COMMISSIONING,JAUNTY SPRINGS HEALTH CENTRE,19592973,0.09 
Department of Health,NHS Sheffield CCG,30/11/2017,C&M-GMS IT Comm Servs -GP Practices,PRIMARY CARE IT,KIER BUSINESS SERVICES LTD,19563116,"105,622.80 "
Department of Health,NHS Sheffield CCG,30/11/2017,FM Computer Contracts,BUSINESS INFORMATICS,KIER BUSINESS SERVICES LTD,19563116,"37,381.20 "
Department of Health,NHS Sheffield CCG,30/11/2017,C&M-GMS LES Translation Fees,INTERPRETING SERVICES,LANGUAGELINE SOLUTIONS,19770780,"37,455.00 "
Department of Health,NHS Sheffield CCG,30/11/2017,C&M-GMS LES Translation Fees,INTERPRETING SERVICES,LANGUAGELINE SOLUTIONS,19770786,"34,365.60 "
Department of Health,NHS Sheffield CCG,30/11/2017,Hcare Srv Rec NHS Trust-Contract Baseline,ACUTE COMMISSIONING,LEEDS TEACHING HOSPITALS NHS TRUST,19604207,"53,622.82 "
Department of Health,NHS Sheffield CCG,30/11/2017,Hcare Srv Rec NHS Trust-Contract Baseline,ACUTE COMMISSIONING,LEEDS TEACHING HOSPITALS NHS TRUST,19709785,"(26,764.75)"
Department of Health,NHS Sheffield CCG,30/11/2017,Cont Care-Physical Disab (<65),CHC ADULT FULLY FUNDED,LONGLEY HEALTH CARE LTD,19563212,"191,539.64 "
Department of Health,NHS Sheffield CCG,30/11/2017,Cont Care-Physical Disab (<65),CHC ADULT FULLY FUNDED,LOXLEY HEALTH CARE LTD,19754257,"56,806.56 "
Department of Health,NHS Sheffield CCG,30/11/2017,C&M-PMS Contract Value,PRC DELEGATED CO-COMMISSIONING,MANCHESTER ROAD SURGERY SHEFFIELD,19592977,"31,031.28 "
Department of Health,NHS Sheffield CCG,30/11/2017,C&M-PMS DES Minor Surgery,PRC DELEGATED CO-COMMISSIONING,MANCHESTER ROAD SURGERY SHEFFIELD,19592977,"1,420.00 "
Department of Health,NHS Sheffield CCG,30/11/2017,C&M-PMS Funding Differential Review,PRC DELEGATED CO-COMMISSIONING,MANCHESTER ROAD SURGERY SHEFFIELD,19592977,446.67 
Department of Health,NHS Sheffield CCG,30/11/2017,C&M-PMS Prem Cost Rent,PRC DELEGATED CO-COMMISSIONING,MANCHESTER ROAD SURGERY SHEFFIELD,19592977,"3,472.17 "
Department of Health,NHS Sheffield CCG,30/11/2017,C&M-PMS Prem Notional Rent,PRC DELEGATED CO-COMMISSIONING,MANCHESTER ROAD SURGERY SHEFFIELD,19592977,442.92 
Department of Health,NHS Sheffield CCG,30/11/2017,C&M-PMS Prem Rates,PRC DELEGATED CO-COMMISSIONING,MANCHESTER ROAD SURGERY SHEFFIELD,19592977,920.00 
Department of Health,NHS Sheffield CCG,30/11/2017,C&M-PMS QOF Aspiration,PRC DELEGATED CO-COMMISSIONING,MANCHESTER ROAD SURGERY SHEFFIELD,19592977,"4,335.60 "
Department of Health,NHS Sheffield CCG,30/11/2017,Hcare Srv Rec Fdtn Trust-Non Contract,NCAS/OATS,MANCHESTER UNIVERSITY NHS FOUNDATION TRUST,19850348,"28,742.06 "
Department of Health,NHS Sheffield CCG,30/11/2017,C&M-GMS Cost of Drugs -Prescribing,LOCAL ENHANCED SERVICES,MANOR PARK MEDICAL CENTRE SHEFFIELD,19820293,"1,324.02 "
Department of Health,NHS Sheffield CCG,30/11/2017,C&M-GMS DES Minor Surgery,PRC DELEGATED CO-COMMISSIONING,MANOR PARK MEDICAL CENTRE SHEFFIELD,19820293,160.00 
Department of Health,NHS Sheffield CCG,30/11/2017,C&M-GMS Global Sum,PRC DELEGATED CO-COMMISSIONING,MANOR PARK MEDICAL CENTRE SHEFFIELD,19820293,"33,476.88 "
Department of Health,NHS Sheffield CCG,30/11/2017,C&M-GMS MPIG Correction Factor,PRC DELEGATED CO-COMMISSIONING,MANOR PARK MEDICAL CENTRE SHEFFIELD,19820293,559.19 
Department of Health,NHS Sheffield CCG,30/11/2017,C&M-GMS Prem Notional Rent,PRC DELEGATED CO-COMMISSIONING,MANOR PARK MEDICAL CENTRE SHEFFIELD,19820293,"3,050.00 "
Department of Health,NHS Sheffield CCG,30/11/2017,C&M-GMS Prem Rates,PRC DELEGATED CO-COMMISSIONING,MANOR PARK MEDICAL CENTRE SHEFFIELD,19820293,428.00 
Department of Health,NHS Sheffield CCG,30/11/2017,C&M-GMS Prof Fees Prescribing,PRC DELEGATED CO-COMMISSIONING,MANOR PARK MEDICAL CENTRE SHEFFIELD,19820293,344.79 
Department of Health,NHS Sheffield CCG,30/11/2017,C&M-GMS QOF Aspiration,PRC DELEGATED CO-COMMISSIONING,MANOR PARK MEDICAL CENTRE SHEFFIELD,19820293,"4,479.66 "
Department of Health,NHS Sheffield CCG,30/11/2017,C&M-GMS Cost of Drugs -Prescribing,LOCAL ENHANCED SERVICES,MATHEWS PRACTICE,19820291,829.58 
Department of Health,NHS Sheffield CCG,30/11/2017,C&M-GMS DES Minor Surgery,PRC DELEGATED CO-COMMISSIONING,MATHEWS PRACTICE,19820291,"2,410.00 "
Department of Health,NHS Sheffield CCG,30/11/2017,C&M-GMS Global Sum,PRC DELEGATED CO-COMMISSIONING,MATHEWS PRACTICE,19820291,"64,881.97 "
Department of Health,NHS Sheffield CCG,30/11/2017,C&M-GMS MPIG Correction Factor,PRC DELEGATED CO-COMMISSIONING,MATHEWS PRACTICE,19820291,898.44 
Department of Health,NHS Sheffield CCG,30/11/2017,C&M-GMS Prem Notional Rent,PRC DELEGATED CO-COMMISSIONING,MATHEWS PRACTICE,19820291,"8,660.42 "
Department of Health,NHS Sheffield CCG,30/11/2017,C&M-GMS Prem Rates,PRC DELEGATED CO-COMMISSIONING,MATHEWS PRACTICE,19820291,"1,757.00 "
Department of Health,NHS Sheffield CCG,30/11/2017,C&M-GMS Prof Fees Prescribing,PRC DELEGATED CO-COMMISSIONING,MATHEWS PRACTICE,19820291,273.05 
Department of Health,NHS Sheffield CCG,30/11/2017,C&M-GMS QOF Aspiration,PRC DELEGATED CO-COMMISSIONING,MATHEWS PRACTICE,19820291,"9,686.98 "
Department of Health,NHS Sheffield CCG,30/11/2017,C&M-PMS Contract Value,PRC DELEGATED CO-COMMISSIONING,MEADOWHEAD GROUP PRACTICE,19592975,"75,910.07 "
Department of Health,NHS Sheffield CCG,30/11/2017,C&M-PMS DES Minor Surgery,PRC DELEGATED CO-COMMISSIONING,MEADOWHEAD GROUP PRACTICE,19592975,"1,360.00 "
Department of Health,NHS Sheffield CCG,30/11/2017,C&M-PMS GP Statutory Levy,PRC DELEGATED CO-COMMISSIONING,MEADOWHEAD GROUP PRACTICE,19592975,0.09 
Department of Health,NHS Sheffield CCG,30/11/2017,C&M-PMS Out of Hours Opt Outs,PRC DELEGATED CO-COMMISSIONING,MEADOWHEAD GROUP PRACTICE,19592975,15.35 
Department of Health,NHS Sheffield CCG,30/11/2017,C&M-PMS Prem Cost Rent,PRC DELEGATED CO-COMMISSIONING,MEADOWHEAD GROUP PRACTICE,19592975,"3,647.42 "
Department of Health,NHS Sheffield CCG,30/11/2017,C&M-PMS Prem Notional Rent,PRC DELEGATED CO-COMMISSIONING,MEADOWHEAD GROUP PRACTICE,19592975,"3,358.33 "
Department of Health,NHS Sheffield CCG,30/11/2017,C&M-PMS Prem Rates,PRC DELEGATED CO-COMMISSIONING,MEADOWHEAD GROUP PRACTICE,19592975,"1,709.00 "
Department of Health,NHS Sheffield CCG,30/11/2017,C&M-PMS Prem Water Rates,PRC DELEGATED CO-COMMISSIONING,MEADOWHEAD GROUP PRACTICE,19592975,192.90 
Department of Health,NHS Sheffield CCG,30/11/2017,C&M-PMS QOF Aspiration,PRC DELEGATED CO-COMMISSIONING,MEADOWHEAD GROUP PRACTICE,19592975,"10,533.01 "
Department of Health,NHS Sheffield CCG,30/11/2017,C&M-PMS Voluntary Levy,PRC DELEGATED CO-COMMISSIONING,MEADOWHEAD GROUP PRACTICE,19592975,0.02 
Department of Health,NHS Sheffield CCG,30/11/2017,C&M-GMS Cost of Drugs -Prescribing,LOCAL ENHANCED SERVICES,MEDICAL CENTRE CRYSTAL PEAKS,19820287,"3,297.03 "
Department of Health,NHS Sheffield CCG,30/11/2017,C&M-GMS DES Minor Surgery,PRC DELEGATED CO-COMMISSIONING,MEDICAL CENTRE CRYSTAL PEAKS,19820287,"4,230.00 "
Department of Health,NHS Sheffield CCG,30/11/2017,C&M-GMS Global Sum,PRC DELEGATED CO-COMMISSIONING,MEDICAL CENTRE CRYSTAL PEAKS,19820287,"43,638.17 "
Department of Health,NHS Sheffield CCG,30/11/2017,C&M-GMS MPIG Correction Factor,PRC DELEGATED CO-COMMISSIONING,MEDICAL CENTRE CRYSTAL PEAKS,19820287,"1,697.01 "
Department of Health,NHS Sheffield CCG,30/11/2017,C&M-GMS PCO Other,PRC DELEGATED CO-COMMISSIONING,MEDICAL CENTRE CRYSTAL PEAKS,19820287,452.60 
Department of Health,NHS Sheffield CCG,30/11/2017,C&M-GMS Prem Notional Rent,PRC DELEGATED CO-COMMISSIONING,MEDICAL CENTRE CRYSTAL PEAKS,19820287,270.00 
Department of Health,NHS Sheffield CCG,30/11/2017,C&M-GMS Prem Rates,PRC DELEGATED CO-COMMISSIONING,MEDICAL CENTRE CRYSTAL PEAKS,19820287,"1,822.00 "
Department of Health,NHS Sheffield CCG,30/11/2017,C&M-GMS Prof Fees Prescribing,PRC DELEGATED CO-COMMISSIONING,MEDICAL CENTRE CRYSTAL PEAKS,19820287,"1,055.19 "
Department of Health,NHS Sheffield CCG,30/11/2017,C&M-GMS QOF Aspiration,PRC DELEGATED CO-COMMISSIONING,MEDICAL CENTRE CRYSTAL PEAKS,19820287,"6,023.36 "
Department of Health,NHS Sheffield CCG,30/11/2017,C&M-GMS Cost of Drugs -Prescribing,LOCAL ENHANCED SERVICES,MILL ROAD SURGERY SHEFFIELD,19820295,959.49 
Department of Health,NHS Sheffield CCG,30/11/2017,C&M-GMS DES Minor Surgery,PRC DELEGATED CO-COMMISSIONING,MILL ROAD SURGERY SHEFFIELD,19820295,"1,240.00 "
Department of Health,NHS Sheffield CCG,30/11/2017,C&M-GMS Global Sum,PRC DELEGATED CO-COMMISSIONING,MILL ROAD SURGERY SHEFFIELD,19820295,"38,250.35 "
Department of Health,NHS Sheffield CCG,30/11/2017,C&M-GMS MPIG Correction Factor,PRC DELEGATED CO-COMMISSIONING,MILL ROAD SURGERY SHEFFIELD,19820295,183.06 
Department of Health,NHS Sheffield CCG,30/11/2017,C&M-GMS PCO Other,PRC DELEGATED CO-COMMISSIONING,MILL ROAD SURGERY SHEFFIELD,19820295,452.60 
Department of Health,NHS Sheffield CCG,30/11/2017,C&M-GMS Prem Notional Rent,PRC DELEGATED CO-COMMISSIONING,MILL ROAD SURGERY SHEFFIELD,19820295,"4,587.50 "
Department of Health,NHS Sheffield CCG,30/11/2017,C&M-GMS Prem Rates,PRC DELEGATED CO-COMMISSIONING,MILL ROAD SURGERY SHEFFIELD,19820295,833.00 
Department of Health,NHS Sheffield CCG,30/11/2017,C&M-GMS Prof Fees Prescribing,PRC DELEGATED CO-COMMISSIONING,MILL ROAD SURGERY SHEFFIELD,19820295,178.17 
Department of Health,NHS Sheffield CCG,30/11/2017,C&M-GMS QOF Aspiration,PRC DELEGATED CO-COMMISSIONING,MILL ROAD SURGERY SHEFFIELD,19820295,"5,445.09 "
Department of Health,NHS Sheffield CCG,30/11/2017,Cont Care-Learning Disab(<65),CHC ADULT FULLY FUNDED,MOORVILLE RESIDENTIAL,19524647,"20,005.05 "
Department of Health,NHS Sheffield CCG,30/11/2017,Cont Care-Learning Disab(<65),CHC ADULT JOINT FUNDED,MOORVILLE RESIDENTIAL,19524647,"2,418.00 "
Department of Health,NHS Sheffield CCG,30/11/2017,Cont Care-Mental Health (<65),CHC ADULT FULLY FUNDED,MOORVILLE RESIDENTIAL,19524647,"3,252.87 "
Department of Health,NHS Sheffield CCG,30/11/2017,Cont Care-Mental Health (<65),CHC ADULT JOINT FUNDED,MOORVILLE RESIDENTIAL,19524647,491.57 
Department of Health,NHS Sheffield CCG,30/11/2017,Clinical&Medical-Independent Sector,Mental Health Services - S117 Mental Health,MOORVILLE RESIDENTIAL,19754628,"3,252.87 "
Department of Health,NHS Sheffield CCG,30/11/2017,Cont Care-Learning Disab(<65),CHC ADULT FULLY FUNDED,MOORVILLE RESIDENTIAL,19754628,"20,005.05 "
Department of Health,NHS Sheffield CCG,30/11/2017,Cont Care-Learning Disab(<65),CHC ADULT JOINT FUNDED,MOORVILLE RESIDENTIAL,19754628,"2,418.00 "
Department of Health,NHS Sheffield CCG,30/11/2017,Cont Care-Mental Health (<65),CHC ADULT JOINT FUNDED,MOORVILLE RESIDENTIAL,19754628,491.57 
Department of Health,NHS Sheffield CCG,30/11/2017,C&M-PMS Contract Value,PRC DELEGATED CO-COMMISSIONING,MOSBOROUGH HEALTH CENTRE,19592979,"45,903.40 "
Department of Health,NHS Sheffield CCG,30/11/2017,C&M-PMS DES Minor Surgery,PRC DELEGATED CO-COMMISSIONING,MOSBOROUGH HEALTH CENTRE,19592979,880.00 
Department of Health,NHS Sheffield CCG,30/11/2017,C&M-PMS Funding Differential Review,PRC DELEGATED CO-COMMISSIONING,MOSBOROUGH HEALTH CENTRE,19592979,"1,253.00 "
Department of Health,NHS Sheffield CCG,30/11/2017,C&M-PMS GP Statutory Levy,PRC DELEGATED CO-COMMISSIONING,MOSBOROUGH HEALTH CENTRE,19592979,0.78 
Department of Health,NHS Sheffield CCG,30/11/2017,C&M-PMS Out of Hours Opt Outs,PRC DELEGATED CO-COMMISSIONING,MOSBOROUGH HEALTH CENTRE,19592979,30.73 
Department of Health,NHS Sheffield CCG,30/11/2017,C&M-PMS PCO Other,PRC DELEGATED CO-COMMISSIONING,MOSBOROUGH HEALTH CENTRE,19592979,452.60 
Department of Health,NHS Sheffield CCG,30/11/2017,C&M-PMS Prem Notional Rent,PRC DELEGATED CO-COMMISSIONING,MOSBOROUGH HEALTH CENTRE,19592979,"4,091.67 "
Department of Health,NHS Sheffield CCG,30/11/2017,C&M-PMS Prem Water Rates,PRC DELEGATED CO-COMMISSIONING,MOSBOROUGH HEALTH CENTRE,19592979,43.17 
Department of Health,NHS Sheffield CCG,30/11/2017,C&M-PMS QOF Aspiration,PRC DELEGATED CO-COMMISSIONING,MOSBOROUGH HEALTH CENTRE,19592979,"6,017.44 "
Department of Health,NHS Sheffield CCG,30/11/2017,C&M-PMS Voluntary Levy,PRC DELEGATED CO-COMMISSIONING,MOSBOROUGH HEALTH CENTRE,19592979,0.14 
Department of Health,NHS Sheffield CCG,30/11/2017,C&M-PMS Contract Value,PRC DELEGATED CO-COMMISSIONING,NETHERGREEN SURGERY,19592981,"60,706.77 "
Department of Health,NHS Sheffield CCG,30/11/2017,C&M-PMS DES Minor Surgery,PRC DELEGATED CO-COMMISSIONING,NETHERGREEN SURGERY,19592981,"1,380.00 "
Department of Health,NHS Sheffield CCG,30/11/2017,C&M-PMS Funding Differential Review,PRC DELEGATED CO-COMMISSIONING,NETHERGREEN SURGERY,19592981,"1,876.58 "
Department of Health,NHS Sheffield CCG,30/11/2017,C&M-PMS GP Statutory Levy,PRC DELEGATED CO-COMMISSIONING,NETHERGREEN SURGERY,19592981,0.39 
Department of Health,NHS Sheffield CCG,30/11/2017,C&M-PMS Prem Cost Rent,PRC DELEGATED CO-COMMISSIONING,NETHERGREEN SURGERY,19592981,"5,057.33 "
Department of Health,NHS Sheffield CCG,30/11/2017,C&M-PMS Prem Rates,PRC DELEGATED CO-COMMISSIONING,NETHERGREEN SURGERY,19592981,"1,200.00 "
Department of Health,NHS Sheffield CCG,30/11/2017,C&M-PMS QOF Aspiration,PRC DELEGATED CO-COMMISSIONING,NETHERGREEN SURGERY,19592981,"6,339.79 "
Department of Health,NHS Sheffield CCG,30/11/2017,C&M-PMS Voluntary Levy,PRC DELEGATED CO-COMMISSIONING,NETHERGREEN SURGERY,19592981,0.06 
Department of Health,NHS Sheffield CCG,30/11/2017,External Consultancy Fees,EXTERNAL COUNSULTANCY FEES,NEWTON EUROPE LTD,19770959,"430,800.00 "
Department of Health,NHS Sheffield CCG,30/11/2017,Seconded-Basic Sal-Staff fm oth org,BEREAVEMENT SERVICE,NHS BARNSLEY CCG,19563027,"51,473.20 "
Department of Health,NHS Sheffield CCG,30/11/2017,Seconded-Employer's NHI Costs,BEREAVEMENT SERVICE,NHS BARNSLEY CCG,19563027,"7,677.80 "
Department of Health,NHS Sheffield CCG,30/11/2017,Prescribing,PRESCRIBING,NHS NORTH DERBYSHIRE CCG,19480401,"28,102.69 "
Department of Health,NHS Sheffield CCG,30/11/2017,Charges from CSU,BUSINESS INFORMATICS,NHS NORTH OF ENGLAND CSU,19722005,"30,083.00 "
Department of Health,NHS Sheffield CCG,30/11/2017,C&M-GMS Cost of Drugs -Prescribing,LOCAL ENHANCED SERVICES,NORFOLK PARK HEALTH CENTRE,19820300,"2,322.86 "
Department of Health,NHS Sheffield CCG,30/11/2017,C&M-GMS DES Minor Surgery,PRC DELEGATED CO-COMMISSIONING,NORFOLK PARK HEALTH CENTRE,19820300,795.00 
Department of Health,NHS Sheffield CCG,30/11/2017,C&M-GMS Global Sum,PRC DELEGATED CO-COMMISSIONING,NORFOLK PARK HEALTH CENTRE,19820300,"34,086.64 "
Department of Health,NHS Sheffield CCG,30/11/2017,C&M-GMS MPIG Correction Factor,PRC DELEGATED CO-COMMISSIONING,NORFOLK PARK HEALTH CENTRE,19820300,"1,386.91 "
Department of Health,NHS Sheffield CCG,30/11/2017,C&M-GMS Prem Healthcentre Rent,PRC DELEGATED CO-COMMISSIONING,NORFOLK PARK HEALTH CENTRE,19820300,"23,010.32 "
Department of Health,NHS Sheffield CCG,30/11/2017,C&M-GMS Prof Fees Prescribing,PRC DELEGATED CO-COMMISSIONING,NORFOLK PARK HEALTH CENTRE,19820300,562.30 
Department of Health,NHS Sheffield CCG,30/11/2017,C&M-GMS QOF Aspiration,PRC DELEGATED CO-COMMISSIONING,NORFOLK PARK HEALTH CENTRE,19820300,"4,068.39 "
Department of Health,NHS Sheffield CCG,30/11/2017,Hcare Srv Rec NHS Trust-Non Contract,NCAS/OATS,NORTHUMBERLAND TYNE AND WEAR NHS FOUNDATION TRUST,19524656,"74,741.00 "
Department of Health,NHS Sheffield CCG,30/11/2017,C&M-GMS Cost of Drugs -Prescribing,LOCAL ENHANCED SERVICES,NORWOOD MEDICAL CENTRE SHEFFIELD,19820303,"8,192.73 "
Department of Health,NHS Sheffield CCG,30/11/2017,C&M-GMS DES Minor Surgery,PRC DELEGATED CO-COMMISSIONING,NORWOOD MEDICAL CENTRE SHEFFIELD,19820303,"2,460.00 "
Department of Health,NHS Sheffield CCG,30/11/2017,C&M-GMS Global Sum,PRC DELEGATED CO-COMMISSIONING,NORWOOD MEDICAL CENTRE SHEFFIELD,19820303,"61,011.90 "
Department of Health,NHS Sheffield CCG,30/11/2017,C&M-GMS PCO Other,PRC DELEGATED CO-COMMISSIONING,NORWOOD MEDICAL CENTRE SHEFFIELD,19820303,452.60 
Department of Health,NHS Sheffield CCG,30/11/2017,C&M-GMS Prem Notional Rent,PRC DELEGATED CO-COMMISSIONING,NORWOOD MEDICAL CENTRE SHEFFIELD,19820303,"5,187.50 "
Department of Health,NHS Sheffield CCG,30/11/2017,C&M-GMS Prem Water Rates,PRC DELEGATED CO-COMMISSIONING,NORWOOD MEDICAL CENTRE SHEFFIELD,19820303,388.73 
Department of Health,NHS Sheffield CCG,30/11/2017,C&M-GMS Prof Fees Prescribing,PRC DELEGATED CO-COMMISSIONING,NORWOOD MEDICAL CENTRE SHEFFIELD,19820303,"2,418.77 "
Department of Health,NHS Sheffield CCG,30/11/2017,C&M-GMS QOF Aspiration,PRC DELEGATED CO-COMMISSIONING,NORWOOD MEDICAL CENTRE SHEFFIELD,19820303,"8,411.55 "
Department of Health,NHS Sheffield CCG,30/11/2017,Clinical&Medical-Independent Sector,ACUTE COMMISSIONING,ONEHEALTH GROUP,19604571,"90,000.00 "
Department of Health,NHS Sheffield CCG,30/11/2017,C&M-GMS Cost of Drugs -Dispensing,LOCAL ENHANCED SERVICES,OUGHTIBRIDGE SURGERY,19820308,"37,775.78 "
Department of Health,NHS Sheffield CCG,30/11/2017,C&M-GMS DES Minor Surgery,PRC DELEGATED CO-COMMISSIONING,OUGHTIBRIDGE SURGERY,19820308,560.00 
Department of Health,NHS Sheffield CCG,30/11/2017,C&M-GMS Global Sum,PRC DELEGATED CO-COMMISSIONING,OUGHTIBRIDGE SURGERY,19820308,"41,333.34 "
Department of Health,NHS Sheffield CCG,30/11/2017,C&M-GMS Prem Notional Rent,PRC DELEGATED CO-COMMISSIONING,OUGHTIBRIDGE SURGERY,19820308,"3,957.33 "
Department of Health,NHS Sheffield CCG,30/11/2017,C&M-GMS Prof Fees Dispensing,PRC DELEGATED CO-COMMISSIONING,OUGHTIBRIDGE SURGERY,19820308,"4,972.42 "
Department of Health,NHS Sheffield CCG,30/11/2017,C&M-GMS PrscrptnChrgsColl&RmttdbyGP,LOCAL ENHANCED SERVICES,OUGHTIBRIDGE SURGERY,19820308,576.20 
Department of Health,NHS Sheffield CCG,30/11/2017,C&M-GMS QOF Aspiration,PRC DELEGATED CO-COMMISSIONING,OUGHTIBRIDGE SURGERY,19820308,"4,693.88 "
Department of Health,NHS Sheffield CCG,30/11/2017,C&M-PMS Contract Value,PRC DELEGATED CO-COMMISSIONING,OWLTHORPE MEDICAL CENTRE,19592983,"36,000.73 "
Department of Health,NHS Sheffield CCG,30/11/2017,C&M-PMS DES Minor Surgery,PRC DELEGATED CO-COMMISSIONING,OWLTHORPE MEDICAL CENTRE,19592983,"1,215.00 "
Department of Health,NHS Sheffield CCG,30/11/2017,C&M-PMS Funding Differential Review,PRC DELEGATED CO-COMMISSIONING,OWLTHORPE MEDICAL CENTRE,19592983,"1,499.67 "
Department of Health,NHS Sheffield CCG,30/11/2017,C&M-PMS GP Statutory Levy,PRC DELEGATED CO-COMMISSIONING,OWLTHORPE MEDICAL CENTRE,19592983,0.84 
Department of Health,NHS Sheffield CCG,30/11/2017,C&M-PMS Out of Hours Opt Outs,PRC DELEGATED CO-COMMISSIONING,OWLTHORPE MEDICAL CENTRE,19592983,137.84 
Department of Health,NHS Sheffield CCG,30/11/2017,C&M-PMS PCO Other,PRC DELEGATED CO-COMMISSIONING,OWLTHORPE MEDICAL CENTRE,19592983,384.50 
Department of Health,NHS Sheffield CCG,30/11/2017,C&M-PMS Prem Actual Rent,PRC DELEGATED CO-COMMISSIONING,OWLTHORPE MEDICAL CENTRE,19592983,"7,539.58 "
Department of Health,NHS Sheffield CCG,30/11/2017,C&M-PMS QOF Aspiration,PRC DELEGATED CO-COMMISSIONING,OWLTHORPE MEDICAL CENTRE,19592983,"4,031.40 "
Department of Health,NHS Sheffield CCG,30/11/2017,C&M-PMS Voluntary Levy,PRC DELEGATED CO-COMMISSIONING,OWLTHORPE MEDICAL CENTRE,19592983,0.15 
Department of Health,NHS Sheffield CCG,30/11/2017,C&M-PMS Contract Value,PRC DELEGATED CO-COMMISSIONING,PAGE HALL MEDICAL CENTRE,19592985,"54,603.69 "
Department of Health,NHS Sheffield CCG,30/11/2017,C&M-PMS DES Learn Dsblty Hlth Chk,PRC DELEGATED CO-COMMISSIONING,PAGE HALL MEDICAL CENTRE,19592985,"1,120.00 "
Department of Health,NHS Sheffield CCG,30/11/2017,C&M-PMS DES Minor Surgery,PRC DELEGATED CO-COMMISSIONING,PAGE HALL MEDICAL CENTRE,19592985,480.00 
Department of Health,NHS Sheffield CCG,30/11/2017,C&M-PMS Funding Differential Review,PRC DELEGATED CO-COMMISSIONING,PAGE HALL MEDICAL CENTRE,19592985,"5,391.08 "
Department of Health,NHS Sheffield CCG,30/11/2017,C&M-PMS Out of Hours Opt Outs,PRC DELEGATED CO-COMMISSIONING,PAGE HALL MEDICAL CENTRE,19592985,7.91 
Department of Health,NHS Sheffield CCG,30/11/2017,C&M-PMS Prem Actual Rent,PRC DELEGATED CO-COMMISSIONING,PAGE HALL MEDICAL CENTRE,19592985,135.00 
Department of Health,NHS Sheffield CCG,30/11/2017,C&M-PMS Prem Notional Rent,PRC DELEGATED CO-COMMISSIONING,PAGE HALL MEDICAL CENTRE,19592985,"4,833.33 "
Department of Health,NHS Sheffield CCG,30/11/2017,C&M-PMS Prem Rates,PRC DELEGATED CO-COMMISSIONING,PAGE HALL MEDICAL CENTRE,19592985,875.00 
Department of Health,NHS Sheffield CCG,30/11/2017,C&M-PMS QOF Aspiration,PRC DELEGATED CO-COMMISSIONING,PAGE HALL MEDICAL CENTRE,19592985,"5,102.24 "
Department of Health,NHS Sheffield CCG,30/11/2017,C&M-PMS Contract Value,PRC DELEGATED CO-COMMISSIONING,PARK HEALTH CENTRE,19592987,"40,085.43 "
Department of Health,NHS Sheffield CCG,30/11/2017,C&M-PMS Funding Differential Review,PRC DELEGATED CO-COMMISSIONING,PARK HEALTH CENTRE,19592987,"3,290.17 "
Department of Health,NHS Sheffield CCG,30/11/2017,C&M-PMS GP Statutory Levy,PRC DELEGATED CO-COMMISSIONING,PARK HEALTH CENTRE,19592987,2.25 
Department of Health,NHS Sheffield CCG,30/11/2017,C&M-PMS Out of Hours Opt Outs,PRC DELEGATED CO-COMMISSIONING,PARK HEALTH CENTRE,19592987,99.64 
Department of Health,NHS Sheffield CCG,30/11/2017,C&M-PMS PCO Locum Adop/Pat/Mat,PRC DELEGATED CO-COMMISSIONING,PARK HEALTH CENTRE,19592987,"13,873.44 "
Department of Health,NHS Sheffield CCG,30/11/2017,C&M-PMS PCO Other,PRC DELEGATED CO-COMMISSIONING,PARK HEALTH CENTRE,19592987,452.60 
Department of Health,NHS Sheffield CCG,30/11/2017,C&M-PMS Prem Notional Rent,PRC DELEGATED CO-COMMISSIONING,PARK HEALTH CENTRE,19592987,"6,000.00 "
Department of Health,NHS Sheffield CCG,30/11/2017,C&M-PMS QOF Aspiration,PRC DELEGATED CO-COMMISSIONING,PARK HEALTH CENTRE,19592987,"4,293.17 "
Department of Health,NHS Sheffield CCG,30/11/2017,C&M-PMS Voluntary Levy,PRC DELEGATED CO-COMMISSIONING,PARK HEALTH CENTRE,19592987,0.38 
Department of Health,NHS Sheffield CCG,30/11/2017,C&M-PMS Contract Value,PRC DELEGATED CO-COMMISSIONING,PITSMOOR SURGERY,19592989,"76,031.60 "
Department of Health,NHS Sheffield CCG,30/11/2017,C&M-PMS DES Minor Surgery,PRC DELEGATED CO-COMMISSIONING,PITSMOOR SURGERY,19592989,"2,700.00 "
Department of Health,NHS Sheffield CCG,30/11/2017,C&M-PMS GP Statutory Levy,PRC DELEGATED CO-COMMISSIONING,PITSMOOR SURGERY,19592989,0.69 
Department of Health,NHS Sheffield CCG,30/11/2017,C&M-PMS Out of Hours Opt Outs,PRC DELEGATED CO-COMMISSIONING,PITSMOOR SURGERY,19592989,70.22 
Department of Health,NHS Sheffield CCG,30/11/2017,C&M-PMS Prem Notional Rent,PRC DELEGATED CO-COMMISSIONING,PITSMOOR SURGERY,19592989,"9,650.00 "
Department of Health,NHS Sheffield CCG,30/11/2017,C&M-PMS QOF Aspiration,PRC DELEGATED CO-COMMISSIONING,PITSMOOR SURGERY,19592989,"7,463.31 "
Department of Health,NHS Sheffield CCG,30/11/2017,C&M-PMS Voluntary Levy,PRC DELEGATED CO-COMMISSIONING,PITSMOOR SURGERY,19592989,0.12 
Department of Health,NHS Sheffield CCG,30/11/2017,C&M-PMS Contract Value,PRC DELEGATED CO-COMMISSIONING,PORTER BROOK MEDICAL CENTRE,19592990,"(7,057.03)"
Department of Health,NHS Sheffield CCG,30/11/2017,C&M-PMS GP Statutory Levy,PRC DELEGATED CO-COMMISSIONING,PORTER BROOK MEDICAL CENTRE,19592990,(941.04)
Department of Health,NHS Sheffield CCG,30/11/2017,C&M-PMS Out of Hours Opt Outs,PRC DELEGATED CO-COMMISSIONING,PORTER BROOK MEDICAL CENTRE,19592990,"(8,314.28)"
Department of Health,NHS Sheffield CCG,30/11/2017,C&M-PMS Voluntary Levy,PRC DELEGATED CO-COMMISSIONING,PORTER BROOK MEDICAL CENTRE,19592990,(156.84)
Department of Health,NHS Sheffield CCG,30/11/2017,C&M-PMS Contract Value,PRC DELEGATED CO-COMMISSIONING,PORTER BROOK MEDICAL CENTRE,19592991,"175,594.91 "
Department of Health,NHS Sheffield CCG,30/11/2017,C&M-PMS DES Minor Surgery,PRC DELEGATED CO-COMMISSIONING,PORTER BROOK MEDICAL CENTRE,19592991,"4,415.00 "
Department of Health,NHS Sheffield CCG,30/11/2017,C&M-PMS Funding Differential Review,PRC DELEGATED CO-COMMISSIONING,PORTER BROOK MEDICAL CENTRE,19592991,"5,112.08 "
Department of Health,NHS Sheffield CCG,30/11/2017,C&M-PMS Out of Hours Opt Outs,PRC DELEGATED CO-COMMISSIONING,PORTER BROOK MEDICAL CENTRE,19592991,352.08 
Department of Health,NHS Sheffield CCG,30/11/2017,C&M-PMS PCO Other,PRC DELEGATED CO-COMMISSIONING,PORTER BROOK MEDICAL CENTRE,19592991,591.80 
Department of Health,NHS Sheffield CCG,30/11/2017,C&M-PMS Prem Actual Rent,PRC DELEGATED CO-COMMISSIONING,PORTER BROOK MEDICAL CENTRE,19592991,"1,333.33 "
Department of Health,NHS Sheffield CCG,30/11/2017,C&M-PMS Prem Notional Rent,PRC DELEGATED CO-COMMISSIONING,PORTER BROOK MEDICAL CENTRE,19592991,"9,559.58 "
Department of Health,NHS Sheffield CCG,30/11/2017,C&M-PMS Prem Rates,PRC DELEGATED CO-COMMISSIONING,PORTER BROOK MEDICAL CENTRE,19592991,"1,956.00 "
Department of Health,NHS Sheffield CCG,30/11/2017,C&M-PMS QOF Aspiration,PRC DELEGATED CO-COMMISSIONING,PORTER BROOK MEDICAL CENTRE,19592991,"8,899.04 "
Department of Health,NHS Sheffield CCG,30/11/2017,Clinical&Medical-Commercial Sector,PATIENT TRANSPORT,PREMIER CARE DIRECT LTD,19692199,"91,807.22 "
Department of Health,NHS Sheffield CCG,30/11/2017,C&M-GMS LES Basket of Procedures,LOCAL ENHANCED SERVICES,PRIMARY CARE SHEFFIELD LTD,19693823,"52,649.35 "
Department of Health,NHS Sheffield CCG,30/11/2017,C&M-APMS DES Extended Hours Access,GP FORWARD VIEW,PRIMARY CARE SHEFFIELD LTD,19754406,"289,935.17 "
Department of Health,NHS Sheffield CCG,30/11/2017,C&M-GMS LES Basket of Procedures,LOCAL ENHANCED SERVICES,PRIMARY CARE SHEFFIELD LTD,19754687,"27,180.00 "
Department of Health,NHS Sheffield CCG,30/11/2017,C&M-OES Childrens Schemes,LOCAL ENHANCED SERVICES,PRIMARY EYECARE (SHEFFIELD) LTD,19770810,"1,175.00 "
Department of Health,NHS Sheffield CCG,30/11/2017,C&M-OES Glaucoma,LOCAL ENHANCED SERVICES,PRIMARY EYECARE (SHEFFIELD) LTD,19770810,840.00 
Department of Health,NHS Sheffield CCG,30/11/2017,C&M-OES Intra-ocular Ocular Hypertn,LOCAL ENHANCED SERVICES,PRIMARY EYECARE (SHEFFIELD) LTD,19770810,900.00 
Department of Health,NHS Sheffield CCG,30/11/2017,C&M-OES PEARS,LOCAL ENHANCED SERVICES,PRIMARY EYECARE (SHEFFIELD) LTD,19770810,"27,335.00 "
Department of Health,NHS Sheffield CCG,30/11/2017,Cont Care-Funded Nursing Care Allow,FUNDED NURSING CARE,PRIORY GROUP LTD,19647666,"27,964.61 "
Department of Health,NHS Sheffield CCG,30/11/2017,Cont Care-Physical Disab (<65),CHC ADULT FULLY FUNDED,PRIORY GROUP LTD,19647742,"28,574.74 "
Department of Health,NHS Sheffield CCG,30/11/2017,C&M-PMS Contract Value,PRC DELEGATED CO-COMMISSIONING,RICHMOND MEDICAL CENTRE,19592993,"63,547.40 "
Department of Health,NHS Sheffield CCG,30/11/2017,C&M-PMS DES Minor Surgery,PRC DELEGATED CO-COMMISSIONING,RICHMOND MEDICAL CENTRE,19592993,415.00 
Department of Health,NHS Sheffield CCG,30/11/2017,C&M-PMS Funding Differential Review,PRC DELEGATED CO-COMMISSIONING,RICHMOND MEDICAL CENTRE,19592993,"1,802.33 "
Department of Health,NHS Sheffield CCG,30/11/2017,C&M-PMS PCO Other,PRC DELEGATED CO-COMMISSIONING,RICHMOND MEDICAL CENTRE,19592993,452.60 
Department of Health,NHS Sheffield CCG,30/11/2017,C&M-PMS Prem Notional Rent,PRC DELEGATED CO-COMMISSIONING,RICHMOND MEDICAL CENTRE,19592993,"4,700.00 "
Department of Health,NHS Sheffield CCG,30/11/2017,C&M-PMS Prem Rates,PRC DELEGATED CO-COMMISSIONING,RICHMOND MEDICAL CENTRE,19592993,"1,139.00 "
Department of Health,NHS Sheffield CCG,30/11/2017,C&M-PMS QOF Aspiration,PRC DELEGATED CO-COMMISSIONING,RICHMOND MEDICAL CENTRE,19592993,"7,754.77 "
Department of Health,NHS Sheffield CCG,30/11/2017,Cont Care-Funded Nursing Care Allow,FUNDED NURSING CARE,ROSEBERRY CARE CENTRES,19647682,"35,629.36 "
Department of Health,NHS Sheffield CCG,30/11/2017,Cont Care-Funded Nursing Care Allow,FUNDED NURSING CARE,ROSEBERRY CARE CENTRES,19652791,"25,583.25 "
Department of Health,NHS Sheffield CCG,30/11/2017,Cont Care-Physical Disab (<65),CHC ADULT FULLY FUNDED,ROSEBERRY CARE CENTRES,19652962,"26,770.81 "
Department of Health,NHS Sheffield CCG,30/11/2017,Cont Care-Physical Disab (<65),CHC ADULT FULLY FUNDED,ROSEBERRY CARE CENTRES,19653033,"25,883.91 "
Department of Health,NHS Sheffield CCG,30/11/2017,Hcare Srv Rec Fdtn Trust-Contract Baseline,ACUTE COMMISSIONING,ROTHERHAM NHS FOUNDATION TRUST,19563016,"429,401.00 "
Department of Health,NHS Sheffield CCG,30/11/2017,C&M-PMS Contract Value,PRC DELEGATED CO-COMMISSIONING,RUSTLINGS ROAD MEDICAL CENTRE,19592997,"26,812.73 "
Department of Health,NHS Sheffield CCG,30/11/2017,C&M-PMS Funding Differential Review,PRC DELEGATED CO-COMMISSIONING,RUSTLINGS ROAD MEDICAL CENTRE,19592997,"1,235.92 "
Department of Health,NHS Sheffield CCG,30/11/2017,C&M-PMS Out of Hours Opt Outs,PRC DELEGATED CO-COMMISSIONING,RUSTLINGS ROAD MEDICAL CENTRE,19592997,14.54 
Department of Health,NHS Sheffield CCG,30/11/2017,C&M-PMS PCO Other,PRC DELEGATED CO-COMMISSIONING,RUSTLINGS ROAD MEDICAL CENTRE,19592997,384.50 
Department of Health,NHS Sheffield CCG,30/11/2017,C&M-PMS Prem Notional Rent,PRC DELEGATED CO-COMMISSIONING,RUSTLINGS ROAD MEDICAL CENTRE,19592997,"1,167.92 "
Department of Health,NHS Sheffield CCG,30/11/2017,C&M-PMS QOF Aspiration,PRC DELEGATED CO-COMMISSIONING,RUSTLINGS ROAD MEDICAL CENTRE,19592997,"2,481.56 "
Department of Health,NHS Sheffield CCG,30/11/2017,Cont Care-Physical Disab (<65),CHC ADULT FULLY FUNDED,SCARSDALE GRANGE NURSING HOME,19652847,"42,711.90 "
Department of Health,NHS Sheffield CCG,30/11/2017,C&M-PMS Contract Value,PRC DELEGATED CO-COMMISSIONING,SELBORNE ROAD MEDICAL CENTRE,19592995,"19,024.26 "
Department of Health,NHS Sheffield CCG,30/11/2017,C&M-PMS Funding Differential Review,PRC DELEGATED CO-COMMISSIONING,SELBORNE ROAD MEDICAL CENTRE,19592995,631.58 
Department of Health,NHS Sheffield CCG,30/11/2017,C&M-PMS GP Statutory Levy,PRC DELEGATED CO-COMMISSIONING,SELBORNE ROAD MEDICAL CENTRE,19592995,0.30 
Department of Health,NHS Sheffield CCG,30/11/2017,C&M-PMS Out of Hours Opt Outs,PRC DELEGATED CO-COMMISSIONING,SELBORNE ROAD MEDICAL CENTRE,19592995,9.19 
Department of Health,NHS Sheffield CCG,30/11/2017,C&M-PMS PCO Other,PRC DELEGATED CO-COMMISSIONING,SELBORNE ROAD MEDICAL CENTRE,19592995,384.50 
Department of Health,NHS Sheffield CCG,30/11/2017,C&M-PMS Prem Notional Rent,PRC DELEGATED CO-COMMISSIONING,SELBORNE ROAD MEDICAL CENTRE,19592995,"2,191.70 "
Department of Health,NHS Sheffield CCG,30/11/2017,C&M-PMS Prem Rates,PRC DELEGATED CO-COMMISSIONING,SELBORNE ROAD MEDICAL CENTRE,19592995,515.00 
Department of Health,NHS Sheffield CCG,30/11/2017,C&M-PMS QOF Aspiration,PRC DELEGATED CO-COMMISSIONING,SELBORNE ROAD MEDICAL CENTRE,19592995,"2,351.67 "
Department of Health,NHS Sheffield CCG,30/11/2017,C&M-PMS Voluntary Levy,PRC DELEGATED CO-COMMISSIONING,SELBORNE ROAD MEDICAL CENTRE,19592995,0.05 
Department of Health,NHS Sheffield CCG,30/11/2017,Cont Care-Physical Disab (<65),CHC ADULT FULLY FUNDED,SEVEN HILLS NURSING HOME,19652830,"36,080.30 "
Department of Health,NHS Sheffield CCG,30/11/2017,C&M-GMS Cost of Drugs -Prescribing,LOCAL ENHANCED SERVICES,SHARROW LANE MEDICAL CENTRE,19820313,796.45 
Department of Health,NHS Sheffield CCG,30/11/2017,C&M-GMS DES Minor Surgery,PRC DELEGATED CO-COMMISSIONING,SHARROW LANE MEDICAL CENTRE,19820313,640.00 
Department of Health,NHS Sheffield CCG,30/11/2017,C&M-GMS Global Sum,PRC DELEGATED CO-COMMISSIONING,SHARROW LANE MEDICAL CENTRE,19820313,"21,889.98 "
Department of Health,NHS Sheffield CCG,30/11/2017,C&M-GMS MPIG Correction Factor,PRC DELEGATED CO-COMMISSIONING,SHARROW LANE MEDICAL CENTRE,19820313,"2,940.48 "
Department of Health,NHS Sheffield CCG,30/11/2017,C&M-GMS PCO Other,PRC DELEGATED CO-COMMISSIONING,SHARROW LANE MEDICAL CENTRE,19820313,384.50 
Department of Health,NHS Sheffield CCG,30/11/2017,C&M-GMS Prem Notional Rent,PRC DELEGATED CO-COMMISSIONING,SHARROW LANE MEDICAL CENTRE,19820313,"2,658.33 "
Department of Health,NHS Sheffield CCG,30/11/2017,C&M-GMS Prem Rates,PRC DELEGATED CO-COMMISSIONING,SHARROW LANE MEDICAL CENTRE,19820313,467.00 
Department of Health,NHS Sheffield CCG,30/11/2017,C&M-GMS Prof Fees Prescribing,PRC DELEGATED CO-COMMISSIONING,SHARROW LANE MEDICAL CENTRE,19820313,196.69 
Department of Health,NHS Sheffield CCG,30/11/2017,C&M-GMS QOF Aspiration,PRC DELEGATED CO-COMMISSIONING,SHARROW LANE MEDICAL CENTRE,19820313,"2,727.76 "
Department of Health,NHS Sheffield CCG,30/11/2017,Hcare Srv Rec Fdtn Trust-CQUIN,ACUTE CHILDRENS SERVICES,SHEFFIELD CHILDRENS NHS FOUNDATION TRUST,19508457,"32,706.00 "
Department of Health,NHS Sheffield CCG,30/11/2017,Hcare Srv Rec Fdtn Trust-CQUIN,COMMUNITY SERVICES,SHEFFIELD CHILDRENS NHS FOUNDATION TRUST,19508457,"3,728.00 "
Department of Health,NHS Sheffield CCG,30/11/2017,Hcare Srv Rec Fdtn Trust-Contract Baseline,ACUTE CHILDRENS SERVICES,SHEFFIELD CHILDRENS NHS FOUNDATION TRUST,19508457,"235,977.00 "
Department of Health,NHS Sheffield CCG,30/11/2017,Hcare Srv Rec Fdtn Trust-Contract Baseline,CHILD AND ADOLESCENT MENTAL HEALTH,SHEFFIELD CHILDRENS NHS FOUNDATION TRUST,19508457,"367,086.00 "
Department of Health,NHS Sheffield CCG,30/11/2017,Hcare Srv Rec Fdtn Trust-Contract Baseline,COMMUNITY SERVICES,SHEFFIELD CHILDRENS NHS FOUNDATION TRUST,19508457,"298,241.00 "
Department of Health,NHS Sheffield CCG,30/11/2017,Hcare Srv Rec Fdtn Trust-Contract Baseline,HIGH COST DRUGS,SHEFFIELD CHILDRENS NHS FOUNDATION TRUST,19508457,"40,649.00 "
Department of Health,NHS Sheffield CCG,30/11/2017,Hcare Srv Rec Fdtn Trust-Contract Baseline,MENTAL HEALTH CONTRACTS,SHEFFIELD CHILDRENS NHS FOUNDATION TRUST,19508457,"5,277.00 "
Department of Health,NHS Sheffield CCG,30/11/2017,Hcare Srv Rec Fdtn Trust-Contract Baseline,PLANNED CARE,SHEFFIELD CHILDRENS NHS FOUNDATION TRUST,19508457,"965,735.00 "
Department of Health,NHS Sheffield CCG,30/11/2017,Hcare Srv Rec Fdtn Trust-Contract Baseline,SAFEGUARDING,SHEFFIELD CHILDRENS NHS FOUNDATION TRUST,19508457,"29,800.00 "
Department of Health,NHS Sheffield CCG,30/11/2017,Hcare Srv Rec Fdtn Trust-Contract Baseline,URGENT CARE,SHEFFIELD CHILDRENS NHS FOUNDATION TRUST,19508457,"988,358.00 "
Department of Health,NHS Sheffield CCG,30/11/2017,Clinical&Medical-Othe Public Sector,COMMUNITY SERVICES,SHEFFIELD CITY COUNCIL,19490987,"21,831.00 "
Department of Health,NHS Sheffield CCG,30/11/2017,Clinical&Medical-Othe Public Sector,MENTAL HEALTH SERVICES - COLLABORATIVE COMMISSIONING,SHEFFIELD CITY COUNCIL,19490987,"16,919.00 "
Department of Health,NHS Sheffield CCG,30/11/2017,Clinical&Medical-Othe Public Sector,REABLEMENT,SHEFFIELD CITY COUNCIL,19490987,"160,417.00 "
Department of Health,NHS Sheffield CCG,30/11/2017,Clinical&Medical-Othe Public Sector,SAFEGUARDING,SHEFFIELD CITY COUNCIL,19490987,"15,324.00 "
Department of Health,NHS Sheffield CCG,30/11/2017,Soc Care-Joint H&C Teams/Working,INTERMEDIATE CARE,SHEFFIELD CITY COUNCIL,19490987,"88,060.00 "
Department of Health,NHS Sheffield CCG,30/11/2017,Soc Care-Learn Disab Servs,LEARNING DIFFICULTIES,SHEFFIELD CITY COUNCIL,19490987,"166,667.00 "
Department of Health,NHS Sheffield CCG,30/11/2017,Soc Care-Other Soc Care,COMMUNITY SERVICES,SHEFFIELD CITY COUNCIL,19490987,"1,467,750.00 "
Department of Health,NHS Sheffield CCG,30/11/2017,Soc Care-Re-ablement services,REABLEMENT,SHEFFIELD CITY COUNCIL,19490987,"63,387.00 "
Department of Health,NHS Sheffield CCG,30/11/2017,Soc Care-Support Prim Care,COMMUNITY SERVICES,SHEFFIELD CITY COUNCIL,19490987,"55,000.00 "
Department of Health,NHS Sheffield CCG,30/11/2017,Cont Care-Physical Disab (65+),CHC ADULT FULLY FUNDED,SHEFFIELD CITY COUNCIL,19563269,"830,199.56 "
Department of Health,NHS Sheffield CCG,30/11/2017,Clinical&Medical-Othe Public Sector,COMMUNITY SERVICES,SHEFFIELD CITY COUNCIL,19604479,"21,831.00 "
Department of Health,NHS Sheffield CCG,30/11/2017,Clinical&Medical-Othe Public Sector,MENTAL HEALTH SERVICES - COLLABORATIVE COMMISSIONING,SHEFFIELD CITY COUNCIL,19604479,"16,919.00 "
Department of Health,NHS Sheffield CCG,30/11/2017,Clinical&Medical-Othe Public Sector,REABLEMENT,SHEFFIELD CITY COUNCIL,19604479,"160,417.00 "
Department of Health,NHS Sheffield CCG,30/11/2017,Clinical&Medical-Othe Public Sector,SAFEGUARDING,SHEFFIELD CITY COUNCIL,19604479,"15,324.00 "
Department of Health,NHS Sheffield CCG,30/11/2017,Soc Care-Joint H&C Teams/Working,INTERMEDIATE CARE,SHEFFIELD CITY COUNCIL,19604479,"88,060.00 "
Department of Health,NHS Sheffield CCG,30/11/2017,Soc Care-Learn Disab Servs,LEARNING DIFFICULTIES,SHEFFIELD CITY COUNCIL,19604479,"166,667.00 "
Department of Health,NHS Sheffield CCG,30/11/2017,Soc Care-Other Soc Care,COMMUNITY SERVICES,SHEFFIELD CITY COUNCIL,19604479,"1,467,750.00 "
Department of Health,NHS Sheffield CCG,30/11/2017,Soc Care-Re-ablement services,REABLEMENT,SHEFFIELD CITY COUNCIL,19604479,"63,387.00 "
Department of Health,NHS Sheffield CCG,30/11/2017,Soc Care-Support Prim Care,COMMUNITY SERVICES,SHEFFIELD CITY COUNCIL,19604479,"55,000.00 "
Department of Health,NHS Sheffield CCG,30/11/2017,C&M-APMS Contract Value,PRC DELEGATED CO-COMMISSIONING,SHEFFIELD HEALTH & SOCIAL CARE NHS FOUNDATION TRUST,19599733,"119,841.70 "
Department of Health,NHS Sheffield CCG,30/11/2017,C&M-APMS DES Minor Surgery,PRC DELEGATED CO-COMMISSIONING,SHEFFIELD HEALTH & SOCIAL CARE NHS FOUNDATION TRUST,19599733,640.00 
Department of Health,NHS Sheffield CCG,30/11/2017,C&M-APMS OOH Opt Outs,PRC DELEGATED CO-COMMISSIONING,SHEFFIELD HEALTH & SOCIAL CARE NHS FOUNDATION TRUST,19599733,27.65 
Department of Health,NHS Sheffield CCG,30/11/2017,C&M-APMS Prem Actual Rent,PRC DELEGATED CO-COMMISSIONING,SHEFFIELD HEALTH & SOCIAL CARE NHS FOUNDATION TRUST,19599733,"5,169.68 "
Department of Health,NHS Sheffield CCG,30/11/2017,C&M-APMS Prem Healthcentre Rent,PRC DELEGATED CO-COMMISSIONING,SHEFFIELD HEALTH & SOCIAL CARE NHS FOUNDATION TRUST,19599733,"60,362.95 "
Department of Health,NHS Sheffield CCG,30/11/2017,C&M-APMS Prem Notional Rent,PRC DELEGATED CO-COMMISSIONING,SHEFFIELD HEALTH & SOCIAL CARE NHS FOUNDATION TRUST,19599733,"2,804.17 "
Department of Health,NHS Sheffield CCG,30/11/2017,C&M-PMS QOF Aspiration,PRC DELEGATED CO-COMMISSIONING,SHEFFIELD HEALTH & SOCIAL CARE NHS FOUNDATION TRUST,19599733,"12,657.74 "
Department of Health,NHS Sheffield CCG,30/11/2017,C&M-APMS Contract Value,PRC DELEGATED CO-COMMISSIONING,SHEFFIELD HEALTH & SOCIAL CARE NHS FOUNDATION TRUST,19599735,"26,563.38 "
Department of Health,NHS Sheffield CCG,30/11/2017,C&M-APMS DES Minor Surgery,PRC DELEGATED CO-COMMISSIONING,SHEFFIELD HEALTH & SOCIAL CARE NHS FOUNDATION TRUST,19599735,80.00 
Department of Health,NHS Sheffield CCG,30/11/2017,C&M-APMS OOH Opt Outs,PRC DELEGATED CO-COMMISSIONING,SHEFFIELD HEALTH & SOCIAL CARE NHS FOUNDATION TRUST,19599735,29.21 
Department of Health,NHS Sheffield CCG,30/11/2017,C&M-PMS QOF Aspiration,PRC DELEGATED CO-COMMISSIONING,SHEFFIELD HEALTH & SOCIAL CARE NHS FOUNDATION TRUST,19599735,"1,256.00 "
Department of Health,NHS Sheffield CCG,30/11/2017,Cont Care-Foundation Trust,CHC ADULT FULLY FUNDED,SHEFFIELD HEALTH & SOCIAL CARE NHS FOUNDATION TRUST,19692156,"236,256.12 "
Department of Health,NHS Sheffield CCG,30/11/2017,Clinical&Medical-Serv Recd-F Trsts,Learning Difficulties - S117,SHEFFIELD HEALTH & SOCIAL CARE NHS FOUNDATION TRUST,19881838,"5,365.36 "
Department of Health,NHS Sheffield CCG,30/11/2017,Cont Care-NHSFT-Adult LD (<65),ADULT JOINT FUNDED CONTINUING CARE,SHEFFIELD HEALTH & SOCIAL CARE NHS FOUNDATION TRUST,19881838,"15,145.50 "
Department of Health,NHS Sheffield CCG,30/11/2017,Cont Care-NHSFT-Adult LD (<65),CHC ADULT FULLY FUNDED,SHEFFIELD HEALTH & SOCIAL CARE NHS FOUNDATION TRUST,19881838,"46,042.08 "
Department of Health,NHS Sheffield CCG,30/11/2017,Clinical&Medical-Serv Recd-F Trsts,Learning Difficulties - S117,SHEFFIELD HEALTH & SOCIAL CARE NHS FOUNDATION TRUST,19881839,"15,510.04 "
Department of Health,NHS Sheffield CCG,30/11/2017,Cont Care-NHSFT-Adult LD (<65),ADULT JOINT FUNDED CONTINUING CARE,SHEFFIELD HEALTH & SOCIAL CARE NHS FOUNDATION TRUST,19881839,"12,102.72 "
Department of Health,NHS Sheffield CCG,30/11/2017,Cont Care-NHSFT-Adult LD (<65),CHC ADULT FULLY FUNDED,SHEFFIELD HEALTH & SOCIAL CARE NHS FOUNDATION TRUST,19881839,"35,897.40 "
Department of Health,NHS Sheffield CCG,30/11/2017,Clinical&Medical-Serv Recd-F Trsts,Learning Difficulties - S117,SHEFFIELD HEALTH & SOCIAL CARE NHS FOUNDATION TRUST,19881841,"5,365.36 "
Department of Health,NHS Sheffield CCG,30/11/2017,Cont Care-NHSFT-Adult LD (<65),ADULT JOINT FUNDED CONTINUING CARE,SHEFFIELD HEALTH & SOCIAL CARE NHS FOUNDATION TRUST,19881841,"6,074.32 "
Department of Health,NHS Sheffield CCG,30/11/2017,Cont Care-NHSFT-Adult LD (<65),CHC ADULT FULLY FUNDED,SHEFFIELD HEALTH & SOCIAL CARE NHS FOUNDATION TRUST,19881841,"49,843.36 "
Department of Health,NHS Sheffield CCG,30/11/2017,Hcare Srv Rec Fdtn Trust-Contract Baseline,ACUTE COMMISSIONING,SHEFFIELD TEACHING HOSPITALS NHS FOUNDATION TRUST,19508553,"1,629,006.00 "
Department of Health,NHS Sheffield CCG,30/11/2017,Hcare Srv Rec Fdtn Trust-Contract Baseline,ACUTE COMMISSIONING,SHEFFIELD TEACHING HOSPITALS NHS FOUNDATION TRUST,19508575,"1,101,688.00 "
Department of Health,NHS Sheffield CCG,30/11/2017,Hcare Srv Rec Fdtn Trust-Contract Baseline,ACUTE COMMISSIONING,SHEFFIELD TEACHING HOSPITALS NHS FOUNDATION TRUST,19508577,"26,312,885.00 "
Department of Health,NHS Sheffield CCG,30/11/2017,Hcare Srv Rec Fdtn Trust-Contract Baseline,ACUTE COMMISSIONING,SHEFFIELD TEACHING HOSPITALS NHS FOUNDATION TRUST,19508601,"3,826,134.00 "
Department of Health,NHS Sheffield CCG,30/11/2017,Hcare Srv Rec Fdtn Trust-Contract Baseline,ACUTE COMMISSIONING,SHEFFIELD TEACHING HOSPITALS NHS FOUNDATION TRUST,19508606,"316,657.00 "
Department of Health,NHS Sheffield CCG,30/11/2017,Hcare Srv Rec Fdtn Trust-Non Contract,BEREAVEMENT SERVICE,SHEFFIELD TEACHING HOSPITALS NHS FOUNDATION TRUST,19770837,"45,198.00 "
Department of Health,NHS Sheffield CCG,30/11/2017,C&M-GMS Cost of Drugs -Prescribing,LOCAL ENHANCED SERVICES,SHIREGREEN MEDICAL CENTRE,19820321,"3,903.61 "
Department of Health,NHS Sheffield CCG,30/11/2017,C&M-GMS DES Minor Surgery,PRC DELEGATED CO-COMMISSIONING,SHIREGREEN MEDICAL CENTRE,19820321,320.00 
Department of Health,NHS Sheffield CCG,30/11/2017,C&M-GMS Global Sum,PRC DELEGATED CO-COMMISSIONING,SHIREGREEN MEDICAL CENTRE,19820321,"55,665.46 "
Department of Health,NHS Sheffield CCG,30/11/2017,C&M-GMS MPIG Correction Factor,PRC DELEGATED CO-COMMISSIONING,SHIREGREEN MEDICAL CENTRE,19820321,680.53 
Department of Health,NHS Sheffield CCG,30/11/2017,C&M-GMS PCO Other,PRC DELEGATED CO-COMMISSIONING,SHIREGREEN MEDICAL CENTRE,19820321,452.60 
Department of Health,NHS Sheffield CCG,30/11/2017,C&M-GMS Prem Cost Rent,PRC DELEGATED CO-COMMISSIONING,SHIREGREEN MEDICAL CENTRE,19820321,"1,792.33 "
Department of Health,NHS Sheffield CCG,30/11/2017,C&M-GMS Prem Notional Rent,PRC DELEGATED CO-COMMISSIONING,SHIREGREEN MEDICAL CENTRE,19820321,"5,375.00 "
Department of Health,NHS Sheffield CCG,30/11/2017,C&M-GMS Prem Rates,PRC DELEGATED CO-COMMISSIONING,SHIREGREEN MEDICAL CENTRE,19820321,"1,877.00 "
Department of Health,NHS Sheffield CCG,30/11/2017,C&M-GMS Prof Fees Prescribing,PRC DELEGATED CO-COMMISSIONING,SHIREGREEN MEDICAL CENTRE,19820321,805.27 
Department of Health,NHS Sheffield CCG,30/11/2017,C&M-GMS QOF Aspiration,PRC DELEGATED CO-COMMISSIONING,SHIREGREEN MEDICAL CENTRE,19820321,"6,614.14 "
Department of Health,NHS Sheffield CCG,30/11/2017,C&M-PMS Contract Value,PRC DELEGATED CO-COMMISSIONING,SLOAN MEDICAL CENTRE,19592999,"92,124.27 "
Department of Health,NHS Sheffield CCG,30/11/2017,C&M-PMS DES Minor Surgery,PRC DELEGATED CO-COMMISSIONING,SLOAN MEDICAL CENTRE,19592999,"2,835.00 "
Department of Health,NHS Sheffield CCG,30/11/2017,C&M-PMS Funding Differential Review,PRC DELEGATED CO-COMMISSIONING,SLOAN MEDICAL CENTRE,19592999,165.33 
Department of Health,NHS Sheffield CCG,30/11/2017,C&M-PMS Out of Hours Opt Outs,PRC DELEGATED CO-COMMISSIONING,SLOAN MEDICAL CENTRE,19592999,34.36 
Department of Health,NHS Sheffield CCG,30/11/2017,C&M-PMS PCO Other,PRC DELEGATED CO-COMMISSIONING,SLOAN MEDICAL CENTRE,19592999,523.70 
Department of Health,NHS Sheffield CCG,30/11/2017,C&M-PMS Prem Actual Rent,PRC DELEGATED CO-COMMISSIONING,SLOAN MEDICAL CENTRE,19592999,"15,535.83 "
Department of Health,NHS Sheffield CCG,30/11/2017,C&M-PMS Prem Notional Rent,PRC DELEGATED CO-COMMISSIONING,SLOAN MEDICAL CENTRE,19592999,608.33 
Department of Health,NHS Sheffield CCG,30/11/2017,C&M-PMS Prem Rates,PRC DELEGATED CO-COMMISSIONING,SLOAN MEDICAL CENTRE,19592999,"2,990.00 "
Department of Health,NHS Sheffield CCG,30/11/2017,C&M-PMS QOF Aspiration,PRC DELEGATED CO-COMMISSIONING,SLOAN MEDICAL CENTRE,19592999,"10,663.96 "
Department of Health,NHS Sheffield CCG,30/11/2017,C&M-PMS Contract Value,PRC DELEGATED CO-COMMISSIONING,SOTHALL MEDICAL CENTRE,19593001,"69,860.97 "
Department of Health,NHS Sheffield CCG,30/11/2017,C&M-PMS DES Minor Surgery,PRC DELEGATED CO-COMMISSIONING,SOTHALL MEDICAL CENTRE,19593001,820.00 
Department of Health,NHS Sheffield CCG,30/11/2017,C&M-PMS Funding Differential Review,PRC DELEGATED CO-COMMISSIONING,SOTHALL MEDICAL CENTRE,19593001,"3,463.83 "
Department of Health,NHS Sheffield CCG,30/11/2017,C&M-PMS GP Statutory Levy,PRC DELEGATED CO-COMMISSIONING,SOTHALL MEDICAL CENTRE,19593001,0.06 
Department of Health,NHS Sheffield CCG,30/11/2017,C&M-PMS Out of Hours Opt Outs,PRC DELEGATED CO-COMMISSIONING,SOTHALL MEDICAL CENTRE,19593001,41.29 
Department of Health,NHS Sheffield CCG,30/11/2017,C&M-PMS PCO Other,PRC DELEGATED CO-COMMISSIONING,SOTHALL MEDICAL CENTRE,19593001,523.70 
Department of Health,NHS Sheffield CCG,30/11/2017,C&M-PMS Prem Healthcentre Rent,PRC DELEGATED CO-COMMISSIONING,SOTHALL MEDICAL CENTRE,19593001,"2,953.43 "
Department of Health,NHS Sheffield CCG,30/11/2017,C&M-PMS Prem Notional Rent,PRC DELEGATED CO-COMMISSIONING,SOTHALL MEDICAL CENTRE,19593001,"5,116.67 "
Department of Health,NHS Sheffield CCG,30/11/2017,C&M-PMS Prem Rates,PRC DELEGATED CO-COMMISSIONING,SOTHALL MEDICAL CENTRE,19593001,"1,000.00 "
Department of Health,NHS Sheffield CCG,30/11/2017,C&M-PMS Prem Water Rates,PRC DELEGATED CO-COMMISSIONING,SOTHALL MEDICAL CENTRE,19593001,67.58 
Department of Health,NHS Sheffield CCG,30/11/2017,C&M-PMS QOF Aspiration,PRC DELEGATED CO-COMMISSIONING,SOTHALL MEDICAL CENTRE,19593001,"8,821.42 "
Department of Health,NHS Sheffield CCG,30/11/2017,C&M-PMS Voluntary Levy,PRC DELEGATED CO-COMMISSIONING,SOTHALL MEDICAL CENTRE,19593001,0.01 
Department of Health,NHS Sheffield CCG,30/11/2017,Hcare Srv Rec Fdtn Trust-Non Contract,NCAS/OATS,SOUTH TEES HOSPITALS NHS FOUNDATION TRUST,19508462,"36,190.09 "
Department of Health,NHS Sheffield CCG,30/11/2017,Cont Care-Physical Disab (<65),CHC ADULT FULLY FUNDED,SOUTH YORKSHIRE HOUSING ASSOCIATION LTD,19563220,"84,181.19 "
Department of Health,NHS Sheffield CCG,30/11/2017,Cont Care- Adult 100% Fully Funded,CHC ADULT FULLY FUNDED,SOUTH YORKSHIRE HOUSING ASSOCIATION LTD,19604519,"103,949.00 "
Department of Health,NHS Sheffield CCG,30/11/2017,Clinical&Medical-Independent Sector,MENTAL HEALTH CONTRACTS,SOUTH YORKSHIRE HOUSING ASSOCIATION LTD,19604541,"34,435.00 "
Department of Health,NHS Sheffield CCG,30/11/2017,Cont Care- Adult 100% Fully Funded,CHC ADULT FULLY FUNDED,SOUTH YORKSHIRE HOUSING ASSOCIATION LTD,19653041,"25,500.00 "
Department of Health,NHS Sheffield CCG,30/11/2017,Cont Care- Prior Year Payments,CHC ADULT FULLY FUNDED,SOUTH YORKSHIRE HOUSING ASSOCIATION LTD,19692063,"87,003.00 "
Department of Health,NHS Sheffield CCG,30/11/2017,Cont Care- Prior Year Payments,CHC ADULT FULLY FUNDED,SOUTH YORKSHIRE HOUSING ASSOCIATION LTD,19692071,"(87,003.00)"
Department of Health,NHS Sheffield CCG,30/11/2017,Cont Care- Prior Year Payments,CHC ADULT FULLY FUNDED,SOUTH YORKSHIRE HOUSING ASSOCIATION LTD,19858085,"145,969.00 "
Department of Health,NHS Sheffield CCG,30/11/2017,C&M-PMS Contract Value,PRC DELEGATED CO-COMMISSIONING,SOUTHEY GREEN MEDICAL CENTRE,19593003,"26,132.32 "
Department of Health,NHS Sheffield CCG,30/11/2017,C&M-PMS Funding Differential Review,PRC DELEGATED CO-COMMISSIONING,SOUTHEY GREEN MEDICAL CENTRE,19593003,127.58 
Department of Health,NHS Sheffield CCG,30/11/2017,C&M-PMS Prem Notional Rent,PRC DELEGATED CO-COMMISSIONING,SOUTHEY GREEN MEDICAL CENTRE,19593003,"3,362.50 "
Department of Health,NHS Sheffield CCG,30/11/2017,C&M-PMS Prem Rates,PRC DELEGATED CO-COMMISSIONING,SOUTHEY GREEN MEDICAL CENTRE,19593003,"1,277.00 "
Department of Health,NHS Sheffield CCG,30/11/2017,C&M-PMS QOF Aspiration,PRC DELEGATED CO-COMMISSIONING,SOUTHEY GREEN MEDICAL CENTRE,19593003,"2,875.40 "
Department of Health,NHS Sheffield CCG,30/11/2017,C&M-GMS Cost of Drugs -Prescribing,LOCAL ENHANCED SERVICES,STANNINGTON MEDICAL CENTRE,19820325,"5,121.37 "
Department of Health,NHS Sheffield CCG,30/11/2017,C&M-GMS DES Minor Surgery,PRC DELEGATED CO-COMMISSIONING,STANNINGTON MEDICAL CENTRE,19820325,200.00 
Department of Health,NHS Sheffield CCG,30/11/2017,C&M-GMS Global Sum,PRC DELEGATED CO-COMMISSIONING,STANNINGTON MEDICAL CENTRE,19820325,"23,059.09 "
Department of Health,NHS Sheffield CCG,30/11/2017,C&M-GMS PCO Other,PRC DELEGATED CO-COMMISSIONING,STANNINGTON MEDICAL CENTRE,19820325,384.50 
Department of Health,NHS Sheffield CCG,30/11/2017,C&M-GMS Prem Notional Rent,PRC DELEGATED CO-COMMISSIONING,STANNINGTON MEDICAL CENTRE,19820325,"2,533.33 "
Department of Health,NHS Sheffield CCG,30/11/2017,C&M-GMS Prem Rates,PRC DELEGATED CO-COMMISSIONING,STANNINGTON MEDICAL CENTRE,19820325,482.00 
Department of Health,NHS Sheffield CCG,30/11/2017,C&M-GMS Prof Fees Prescribing,PRC DELEGATED CO-COMMISSIONING,STANNINGTON MEDICAL CENTRE,19820325,"1,293.22 "
Department of Health,NHS Sheffield CCG,30/11/2017,C&M-GMS QOF Aspiration,PRC DELEGATED CO-COMMISSIONING,STANNINGTON MEDICAL CENTRE,19820325,"3,253.08 "
Department of Health,NHS Sheffield CCG,30/11/2017,C&M-GMS DES Minor Surgery,PRC DELEGATED CO-COMMISSIONING,STONECROFT MEDICAL CENTRE,19820323,"1,280.00 "
Department of Health,NHS Sheffield CCG,30/11/2017,C&M-GMS Global Sum,PRC DELEGATED CO-COMMISSIONING,STONECROFT MEDICAL CENTRE,19820323,"30,084.78 "
Department of Health,NHS Sheffield CCG,30/11/2017,C&M-GMS MPIG Correction Factor,PRC DELEGATED CO-COMMISSIONING,STONECROFT MEDICAL CENTRE,19820323,927.38 
Department of Health,NHS Sheffield CCG,30/11/2017,C&M-GMS PCO Other,PRC DELEGATED CO-COMMISSIONING,STONECROFT MEDICAL CENTRE,19820323,384.50 
Department of Health,NHS Sheffield CCG,30/11/2017,C&M-GMS Prem Notional Rent,PRC DELEGATED CO-COMMISSIONING,STONECROFT MEDICAL CENTRE,19820323,"2,808.33 "
Department of Health,NHS Sheffield CCG,30/11/2017,C&M-GMS Prem Rates,PRC DELEGATED CO-COMMISSIONING,STONECROFT MEDICAL CENTRE,19820323,"1,083.00 "
Department of Health,NHS Sheffield CCG,30/11/2017,C&M-GMS QOF Aspiration,PRC DELEGATED CO-COMMISSIONING,STONECROFT MEDICAL CENTRE,19820323,"4,224.91 "
Department of Health,NHS Sheffield CCG,30/11/2017,Clinical&Medical-Independent Sector,MENTAL HEALTH CONTRACTS,SUSASH GB LTD T/A EAGLE HOUSE,19604530,"30,092.00 "
Department of Health,NHS Sheffield CCG,30/11/2017,C&M-GMS Cost of Drugs -Prescribing,LOCAL ENHANCED SERVICES,TOTLEY RISE MEDICAL CENTRE,19820327,"3,362.72 "
Department of Health,NHS Sheffield CCG,30/11/2017,C&M-GMS DES Minor Surgery,PRC DELEGATED CO-COMMISSIONING,TOTLEY RISE MEDICAL CENTRE,19820327,40.00 
Department of Health,NHS Sheffield CCG,30/11/2017,C&M-GMS Global Sum,PRC DELEGATED CO-COMMISSIONING,TOTLEY RISE MEDICAL CENTRE,19820327,"22,215.43 "
Department of Health,NHS Sheffield CCG,30/11/2017,C&M-GMS MPIG Correction Factor,PRC DELEGATED CO-COMMISSIONING,TOTLEY RISE MEDICAL CENTRE,19820327,154.70 
Department of Health,NHS Sheffield CCG,30/11/2017,C&M-GMS PCO Locum Adop/Pat/Mat,PRC DELEGATED CO-COMMISSIONING,TOTLEY RISE MEDICAL CENTRE,19820327,"3,765.40 "
Department of Health,NHS Sheffield CCG,30/11/2017,C&M-GMS PCO Other,PRC DELEGATED CO-COMMISSIONING,TOTLEY RISE MEDICAL CENTRE,19820327,384.50 
Department of Health,NHS Sheffield CCG,30/11/2017,C&M-GMS Prem Notional Rent,PRC DELEGATED CO-COMMISSIONING,TOTLEY RISE MEDICAL CENTRE,19820327,"1,491.67 "
Department of Health,NHS Sheffield CCG,30/11/2017,C&M-GMS Prem Rates,PRC DELEGATED CO-COMMISSIONING,TOTLEY RISE MEDICAL CENTRE,19820327,136.00 
Department of Health,NHS Sheffield CCG,30/11/2017,C&M-GMS Prof Fees Prescribing,PRC DELEGATED CO-COMMISSIONING,TOTLEY RISE MEDICAL CENTRE,19820327,"1,041.30 "
Department of Health,NHS Sheffield CCG,30/11/2017,C&M-GMS QOF Aspiration,PRC DELEGATED CO-COMMISSIONING,TOTLEY RISE MEDICAL CENTRE,19820327,"2,269.92 "
Department of Health,NHS Sheffield CCG,30/11/2017,C&M-GMS Cost of Drugs -Prescribing,LOCAL ENHANCED SERVICES,TRAMWAYS MEDICAL CENTRE,19820329,"7,039.58 "
Department of Health,NHS Sheffield CCG,30/11/2017,C&M-GMS DES Minor Surgery,PRC DELEGATED CO-COMMISSIONING,TRAMWAYS MEDICAL CENTRE,19820329,"8,565.00 "
Department of Health,NHS Sheffield CCG,30/11/2017,C&M-GMS Global Sum,PRC DELEGATED CO-COMMISSIONING,TRAMWAYS MEDICAL CENTRE,19820329,"58,619.02 "
Department of Health,NHS Sheffield CCG,30/11/2017,C&M-GMS PCO Other,PRC DELEGATED CO-COMMISSIONING,TRAMWAYS MEDICAL CENTRE,19820329,452.60 
Department of Health,NHS Sheffield CCG,30/11/2017,C&M-GMS Prem Cost Rent,PRC DELEGATED CO-COMMISSIONING,TRAMWAYS MEDICAL CENTRE,19820329,"4,012.75 "
Department of Health,NHS Sheffield CCG,30/11/2017,C&M-GMS Prem Rates,PRC DELEGATED CO-COMMISSIONING,TRAMWAYS MEDICAL CENTRE,19820329,889.00 
Department of Health,NHS Sheffield CCG,30/11/2017,C&M-GMS Prem Water Rates,PRC DELEGATED CO-COMMISSIONING,TRAMWAYS MEDICAL CENTRE,19820329,399.97 
Department of Health,NHS Sheffield CCG,30/11/2017,C&M-GMS Prof Fees Prescribing,PRC DELEGATED CO-COMMISSIONING,TRAMWAYS MEDICAL CENTRE,19820329,"1,680.63 "
Department of Health,NHS Sheffield CCG,30/11/2017,C&M-GMS QOF Aspiration,PRC DELEGATED CO-COMMISSIONING,TRAMWAYS MEDICAL CENTRE,19820329,"6,336.58 "
Department of Health,NHS Sheffield CCG,30/11/2017,Cont Care-Funded Nursing Care Allow,FUNDED NURSING CARE,ULTIMA CARE CENTRES (NO1) LTD,19652880,"29,614.55 "
Department of Health,NHS Sheffield CCG,30/11/2017,C&M-PMS Contract Value,PRC DELEGATED CO-COMMISSIONING,UNIVERSITY HEALTH SERVICE,19593007,"193,878.10 "
Department of Health,NHS Sheffield CCG,30/11/2017,C&M-PMS DES Minor Surgery,PRC DELEGATED CO-COMMISSIONING,UNIVERSITY HEALTH SERVICE,19593007,765.00 
Department of Health,NHS Sheffield CCG,30/11/2017,C&M-PMS Out of Hours Opt Outs,PRC DELEGATED CO-COMMISSIONING,UNIVERSITY HEALTH SERVICE,19593007,507.65 
Department of Health,NHS Sheffield CCG,30/11/2017,C&M-PMS PCO Locum Adop/Pat/Mat,PRC DELEGATED CO-COMMISSIONING,UNIVERSITY HEALTH SERVICE,19593007,"12,617.50 "
Department of Health,NHS Sheffield CCG,30/11/2017,C&M-PMS Prem Notional Rent,PRC DELEGATED CO-COMMISSIONING,UNIVERSITY HEALTH SERVICE,19593007,"15,833.33 "
Department of Health,NHS Sheffield CCG,30/11/2017,C&M-PMS QOF Aspiration,PRC DELEGATED CO-COMMISSIONING,UNIVERSITY HEALTH SERVICE,19593007,"3,640.26 "
Department of Health,NHS Sheffield CCG,30/11/2017,C&M-GMS Cost of Drugs -Prescribing,LOCAL ENHANCED SERVICES,UPPERTHORPE MEDICAL CENTRE,19820332,"7,846.59 "
Department of Health,NHS Sheffield CCG,30/11/2017,C&M-GMS DES Minor Surgery,PRC DELEGATED CO-COMMISSIONING,UPPERTHORPE MEDICAL CENTRE,19820332,"1,370.00 "
Department of Health,NHS Sheffield CCG,30/11/2017,C&M-GMS DES TPP QRISK,PRC DELEGATED CO-COMMISSIONING,UPPERTHORPE MEDICAL CENTRE,19820332,598.00 
Department of Health,NHS Sheffield CCG,30/11/2017,C&M-GMS Global Sum,PRC DELEGATED CO-COMMISSIONING,UPPERTHORPE MEDICAL CENTRE,19820332,"76,147.36 "
Department of Health,NHS Sheffield CCG,30/11/2017,C&M-GMS MPIG Correction Factor,PRC DELEGATED CO-COMMISSIONING,UPPERTHORPE MEDICAL CENTRE,19820332,"1,988.60 "
Department of Health,NHS Sheffield CCG,30/11/2017,C&M-GMS Prem Notional Rent,PRC DELEGATED CO-COMMISSIONING,UPPERTHORPE MEDICAL CENTRE,19820332,"2,497.83 "
Department of Health,NHS Sheffield CCG,30/11/2017,C&M-GMS Prem Rates,PRC DELEGATED CO-COMMISSIONING,UPPERTHORPE MEDICAL CENTRE,19820332,"2,044.00 "
Department of Health,NHS Sheffield CCG,30/11/2017,C&M-GMS Prof Fees Prescribing,PRC DELEGATED CO-COMMISSIONING,UPPERTHORPE MEDICAL CENTRE,19820332,"1,747.06 "
Department of Health,NHS Sheffield CCG,30/11/2017,C&M-GMS QOF Aspiration,PRC DELEGATED CO-COMMISSIONING,UPPERTHORPE MEDICAL CENTRE,19820332,"9,309.14 "
Department of Health,NHS Sheffield CCG,30/11/2017,C&M-PMS Contract Value,PRC DELEGATED CO-COMMISSIONING,UPWELL STREET SURGERY,19593009,"37,326.83 "
Department of Health,NHS Sheffield CCG,30/11/2017,C&M-PMS DES Minor Surgery,PRC DELEGATED CO-COMMISSIONING,UPWELL STREET SURGERY,19593009,880.00 
Department of Health,NHS Sheffield CCG,30/11/2017,C&M-PMS Funding Differential Review,PRC DELEGATED CO-COMMISSIONING,UPWELL STREET SURGERY,19593009,"2,004.50 "
Department of Health,NHS Sheffield CCG,30/11/2017,C&M-PMS GP Statutory Levy,PRC DELEGATED CO-COMMISSIONING,UPWELL STREET SURGERY,19593009,0.87 
Department of Health,NHS Sheffield CCG,30/11/2017,C&M-PMS Out of Hours Opt Outs,PRC DELEGATED CO-COMMISSIONING,UPWELL STREET SURGERY,19593009,70.89 
Department of Health,NHS Sheffield CCG,30/11/2017,C&M-PMS PCO Other,PRC DELEGATED CO-COMMISSIONING,UPWELL STREET SURGERY,19593009,384.50 
Department of Health,NHS Sheffield CCG,30/11/2017,C&M-PMS Prem Actual Rent,PRC DELEGATED CO-COMMISSIONING,UPWELL STREET SURGERY,19593009,"8,137.50 "
Department of Health,NHS Sheffield CCG,30/11/2017,C&M-PMS Prem Notional Rent,PRC DELEGATED CO-COMMISSIONING,UPWELL STREET SURGERY,19593009,"8,137.50 "
Department of Health,NHS Sheffield CCG,30/11/2017,C&M-PMS Prem Rates,PRC DELEGATED CO-COMMISSIONING,UPWELL STREET SURGERY,19593009,984.00 
Department of Health,NHS Sheffield CCG,30/11/2017,C&M-PMS QOF Aspiration,PRC DELEGATED CO-COMMISSIONING,UPWELL STREET SURGERY,19593009,"4,877.64 "
Department of Health,NHS Sheffield CCG,30/11/2017,C&M-PMS Voluntary Levy,PRC DELEGATED CO-COMMISSIONING,UPWELL STREET SURGERY,19593009,0.15 
Department of Health,NHS Sheffield CCG,30/11/2017,C&M-PMS Contract Value,PRC DELEGATED CO-COMMISSIONING,VALLEY MEDICAL CENTRE,19593011,"76,286.37 "
Department of Health,NHS Sheffield CCG,30/11/2017,C&M-PMS DES Minor Surgery,PRC DELEGATED CO-COMMISSIONING,VALLEY MEDICAL CENTRE,19593011,"2,140.00 "
Department of Health,NHS Sheffield CCG,30/11/2017,C&M-PMS Funding Differential Review,PRC DELEGATED CO-COMMISSIONING,VALLEY MEDICAL CENTRE,19593011,271.17 
Department of Health,NHS Sheffield CCG,30/11/2017,C&M-PMS Out of Hours Opt Outs,PRC DELEGATED CO-COMMISSIONING,VALLEY MEDICAL CENTRE,19593011,0.60 
Department of Health,NHS Sheffield CCG,30/11/2017,C&M-PMS Prem Rates,PRC DELEGATED CO-COMMISSIONING,VALLEY MEDICAL CENTRE,19593011,"1,083.00 "
Department of Health,NHS Sheffield CCG,30/11/2017,C&M-PMS QOF Aspiration,PRC DELEGATED CO-COMMISSIONING,VALLEY MEDICAL CENTRE,19593011,"9,125.55 "
Department of Health,NHS Sheffield CCG,30/11/2017,Cont Care-Learning Disab(65+),CHC ADULT FULLY FUNDED,VOYAGE CARE,19827070,"32,089.68 "
Department of Health,NHS Sheffield CCG,30/11/2017,C&M-GMS Cost of Drugs -Prescribing,LOCAL ENHANCED SERVICES,WALKLEY HOUSE MEDICAL CENTRE,19820337,"2,211.59 "
Department of Health,NHS Sheffield CCG,30/11/2017,C&M-GMS DES Minor Surgery,PRC DELEGATED CO-COMMISSIONING,WALKLEY HOUSE MEDICAL CENTRE,19820337,"2,430.00 "
Department of Health,NHS Sheffield CCG,30/11/2017,C&M-GMS Global Sum,PRC DELEGATED CO-COMMISSIONING,WALKLEY HOUSE MEDICAL CENTRE,19820337,"78,378.53 "
Department of Health,NHS Sheffield CCG,30/11/2017,C&M-GMS Prem Notional Rent,PRC DELEGATED CO-COMMISSIONING,WALKLEY HOUSE MEDICAL CENTRE,19820337,"6,026.91 "
Department of Health,NHS Sheffield CCG,30/11/2017,C&M-GMS Prof Fees Prescribing,PRC DELEGATED CO-COMMISSIONING,WALKLEY HOUSE MEDICAL CENTRE,19820337,437.34 
Department of Health,NHS Sheffield CCG,30/11/2017,C&M-GMS QOF Aspiration,PRC DELEGATED CO-COMMISSIONING,WALKLEY HOUSE MEDICAL CENTRE,19820337,"8,922.54 "
Department of Health,NHS Sheffield CCG,30/11/2017,C&M-GMS Cost of Drugs -Prescribing,LOCAL ENHANCED SERVICES,WHITE HOUSE SURGERY SHEFFIELD,19836987,"6,021.68 "
Department of Health,NHS Sheffield CCG,30/11/2017,C&M-GMS DES Minor Surgery,PRC DELEGATED CO-COMMISSIONING,WHITE HOUSE SURGERY SHEFFIELD,19836987,280.00 
Department of Health,NHS Sheffield CCG,30/11/2017,C&M-GMS Global Sum,PRC DELEGATED CO-COMMISSIONING,WHITE HOUSE SURGERY SHEFFIELD,19836987,"47,534.58 "
Department of Health,NHS Sheffield CCG,30/11/2017,C&M-GMS MPIG Correction Factor,PRC DELEGATED CO-COMMISSIONING,WHITE HOUSE SURGERY SHEFFIELD,19836987,"2,086.94 "
Department of Health,NHS Sheffield CCG,30/11/2017,C&M-GMS PCO Locum Adop/Pat/Mat,PRC DELEGATED CO-COMMISSIONING,WHITE HOUSE SURGERY SHEFFIELD,19836987,"5,482.05 "
Department of Health,NHS Sheffield CCG,30/11/2017,C&M-GMS Prem Notional Rent,PRC DELEGATED CO-COMMISSIONING,WHITE HOUSE SURGERY SHEFFIELD,19836987,"9,104.17 "
Department of Health,NHS Sheffield CCG,30/11/2017,C&M-GMS Prem Rates,PRC DELEGATED CO-COMMISSIONING,WHITE HOUSE SURGERY SHEFFIELD,19836987,"2,013.00 "
Department of Health,NHS Sheffield CCG,30/11/2017,C&M-GMS Prof Fees Prescribing,PRC DELEGATED CO-COMMISSIONING,WHITE HOUSE SURGERY SHEFFIELD,19836987,"1,885.91 "
Department of Health,NHS Sheffield CCG,30/11/2017,C&M-GMS QOF Aspiration,PRC DELEGATED CO-COMMISSIONING,WHITE HOUSE SURGERY SHEFFIELD,19836987,"6,083.99 "
Department of Health,NHS Sheffield CCG,30/11/2017,Cont Care-Physical Disab (<65),CHC ADULT FULLY FUNDED,WILLOWBECK HEALTH CARE LTD,19563242,"141,326.04 "
Department of Health,NHS Sheffield CCG,30/11/2017,C&M-PMS Contract Value,PRC DELEGATED CO-COMMISSIONING,WINCOBANK MEDICAL CENTRE,19593017,"60,314.75 "
Department of Health,NHS Sheffield CCG,30/11/2017,C&M-PMS DES Minor Surgery,PRC DELEGATED CO-COMMISSIONING,WINCOBANK MEDICAL CENTRE,19593017,"1,440.00 "
Department of Health,NHS Sheffield CCG,30/11/2017,C&M-PMS Funding Differential Review,PRC DELEGATED CO-COMMISSIONING,WINCOBANK MEDICAL CENTRE,19593017,9.92 
Department of Health,NHS Sheffield CCG,30/11/2017,C&M-PMS Prem Healthcentre Rent,PRC DELEGATED CO-COMMISSIONING,WINCOBANK MEDICAL CENTRE,19593017,"42,475.13 "
Department of Health,NHS Sheffield CCG,30/11/2017,C&M-PMS QOF Aspiration,PRC DELEGATED CO-COMMISSIONING,WINCOBANK MEDICAL CENTRE,19593017,"6,934.01 "
Department of Health,NHS Sheffield CCG,30/11/2017,C&M-PMS Contract Value,PRC DELEGATED CO-COMMISSIONING,WOODHOUSE HEALTH CENTRE,19593013,"97,008.75 "
Department of Health,NHS Sheffield CCG,30/11/2017,C&M-PMS DES Minor Surgery,PRC DELEGATED CO-COMMISSIONING,WOODHOUSE HEALTH CENTRE,19593013,"3,400.00 "
Department of Health,NHS Sheffield CCG,30/11/2017,C&M-PMS Funding Differential Review,PRC DELEGATED CO-COMMISSIONING,WOODHOUSE HEALTH CENTRE,19593013,"2,776.33 "
Department of Health,NHS Sheffield CCG,30/11/2017,C&M-PMS GP Statutory Levy,PRC DELEGATED CO-COMMISSIONING,WOODHOUSE HEALTH CENTRE,19593013,0.39 
Department of Health,NHS Sheffield CCG,30/11/2017,C&M-PMS Out of Hours Opt Outs,PRC DELEGATED CO-COMMISSIONING,WOODHOUSE HEALTH CENTRE,19593013,13.80 
Department of Health,NHS Sheffield CCG,30/11/2017,C&M-PMS PCO Other,PRC DELEGATED CO-COMMISSIONING,WOODHOUSE HEALTH CENTRE,19593013,523.70 
Department of Health,NHS Sheffield CCG,30/11/2017,C&M-PMS Prem Notional Rent,PRC DELEGATED CO-COMMISSIONING,WOODHOUSE HEALTH CENTRE,19593013,"6,338.58 "
Department of Health,NHS Sheffield CCG,30/11/2017,C&M-PMS Prem Water Rates,PRC DELEGATED CO-COMMISSIONING,WOODHOUSE HEALTH CENTRE,19593013,425.72 
Department of Health,NHS Sheffield CCG,30/11/2017,C&M-PMS QOF Aspiration,PRC DELEGATED CO-COMMISSIONING,WOODHOUSE HEALTH CENTRE,19593013,"14,743.27 "
Department of Health,NHS Sheffield CCG,30/11/2017,C&M-PMS Voluntary Levy,PRC DELEGATED CO-COMMISSIONING,WOODHOUSE HEALTH CENTRE,19593013,0.06 
Department of Health,NHS Sheffield CCG,30/11/2017,C&M-PMS Contract Value,PRC DELEGATED CO-COMMISSIONING,WOODSEATS MEDICAL CENTRE,19593015,"69,686.65 "
Department of Health,NHS Sheffield CCG,30/11/2017,C&M-PMS DES Minor Surgery,PRC DELEGATED CO-COMMISSIONING,WOODSEATS MEDICAL CENTRE,19593015,"3,430.00 "
Department of Health,NHS Sheffield CCG,30/11/2017,C&M-PMS Funding Differential Review,PRC DELEGATED CO-COMMISSIONING,WOODSEATS MEDICAL CENTRE,19593015,397.08 
Department of Health,NHS Sheffield CCG,30/11/2017,C&M-PMS PCO Other,PRC DELEGATED CO-COMMISSIONING,WOODSEATS MEDICAL CENTRE,19593015,452.60 
Department of Health,NHS Sheffield CCG,30/11/2017,C&M-PMS Prem Notional Rent,PRC DELEGATED CO-COMMISSIONING,WOODSEATS MEDICAL CENTRE,19593015,"11,666.42 "
Department of Health,NHS Sheffield CCG,30/11/2017,C&M-PMS Prem Water Rates,PRC DELEGATED CO-COMMISSIONING,WOODSEATS MEDICAL CENTRE,19593015,949.38 
Department of Health,NHS Sheffield CCG,30/11/2017,C&M-PMS QOF Aspiration,PRC DELEGATED CO-COMMISSIONING,WOODSEATS MEDICAL CENTRE,19593015,"8,124.33 "
Department of Health,NHS Sheffield CCG,30/11/2017,Hcare Srv Rec NHS Trust-Contract Baseline,NHS 111,YORKSHIRE AMBULANCE SERVICE NHS TRUST,19508677,"98,607.99 "
Department of Health,NHS Sheffield CCG,30/11/2017,Hcare Srv Rec NHS Trust-Contract Baseline,AMBULANCE SERVICES,YORKSHIRE AMBULANCE SERVICE NHS TRUST,19508683,"123,979.00 "
Department of Health,NHS Sheffield CCG,30/11/2017,Hcare Srv Rec NHS Trust-CQUIN,AMBULANCE SERVICES,YORKSHIRE AMBULANCE SERVICE NHS TRUST,19508691,"27,566.00 "
Department of Health,NHS Sheffield CCG,30/11/2017,Hcare Srv Rec NHS Trust-Contract Baseline,AMBULANCE SERVICES,YORKSHIRE AMBULANCE SERVICE NHS TRUST,19508692,"1,440,139.00 "
Department of Health,NHS Sheffield CCG,30/11/2017,Hcare Srv Rec NHS Trust-Contract Baseline,PATIENT TRANSPORT,YORKSHIRE AMBULANCE SERVICE NHS TRUST,19508695,"255,744.52 "
,,,,,,,"53,367,773.14 "
